Workbook

Sheet Enabling Form Macros
B2: ENABLING FORM MACROS
B3: Microsoft recently changed the default behavior of their Office applications to block macros in files downloaded from the
B4: internet. Depending on your security settings, you may receive different warning messages with this application.
B6: Scenario 1: When opening this application file for the first time, you may get the following warning:
C10: If you want more information, click the link in the message. To proceed, click “Enable Content”.
C12: If you then receive the following message, choose “Yes” and the application can be completed with macros enabled.
B22: Scenario 2: If you get the following message, your security settings are higher:
C26: To proceed, you will need to close the downloaded file, right click on the file (in the folder where you saved it),
C27: choose “Properties”, select the “Unblock” checkbox (on the “General” tab, as shown below), then select “Apply”.
C49: When you open the application document. You should get the following message. Click “Enable Content”.
C53: If you then get the following message, Select “Yes” and the application can be completed with macros enabled.
B63: In either scenario, be sure to save the file with macros enabled, especially if you do not plan to complete it right away. If
B64: you need additional assistance, please contact us at energy@dnr.mo.gov or 855-522-2796.

Sheet Instructions
B2: APPLICATION INSTRUCTIONS
C4: You can navigate through this application by clicking the tabs at the bottom of the page as shown below.
C9: Please read the instructions below on how to use the Energy Loan Program (ELP) application.
C11: Step 1: Refer to our webpage for detailed requirements for participation.
C12: Step 2: Complete the Application Authorization form.
C13: Step 3: Complete the Fuel Use Summary form.
C14: Step 4: Complete the Energy Conservation Measure (ECM) worksheet(s) below for your project(s) to calculate the savings.
C15: Step 5: Complete the ECM Summary form.
C16: Step 6: Copy or scan the most recent 12 months utility bills to include with application.
C17: Step 7: Submit the application as stated on our webpage.
C19: Please contact us at 855-522-2796 or energyloanprogram@dnr.mo.gov for assistance.
B21: ECM WORKSHEET DESCRIPTIONS
C23: The ECM Worksheets are a set of worksheets to qualify ECMs for funding approval that have been proven cost-effective over time and, generally, do not require a more comprehensive analysis.
C25: For the ELP Application, at minimum, the following items must be submitted: Application Authorization form, Fuel Use Summary, most recent 12 months utility bills, ECM Summary and applicable ECM Worksheets.
C27: Hand calculations or spreadsheets for simple ECMs may be accepted on a case-by-case basis. Modeling is not required when ECM Worksheets are appropriate.
C29: ECM worksheets provide line-by-line instructions to assist in their completion. The following is a brief description for each worksheet:
C31: · The Motor Upgrade worksheet is used to estimate energy savings for more efficient motor replacement. The worksheet is only applicable to constant load and same size motors. The worksheet is not applicable to pulsating loads, VFDs, random loads or loads that cycle at rapidly repeating intervals.
C33: · The Wall or Ceiling Insulation worksheet is used to estimate the savings for an area to be insulated that has a uniform R-value over the entire area and in which the R-value to be added will be applied uniformly over this same area. If the R-value is not the same in all areas of the building or different R-values will be added to separate areas of the building, a worksheet must be used for each of the individual areas.
C35: · The Pipe Insulation worksheets (Natural Gas and Electric) are used to estimate the savings for insulating heating pipes that serve radiators or fan coil units. Furnace rooms, crawlspaces, unheated areas and overheated rooms are typical for effective insulation applications. A Heat Loss Factor Table follows the Pipe Insulation worksheet for reference. To use the worksheet, the heating and cooling distribution pipe must be in an area of constant temperature. The pipe distribution must be indoors.
C37: · The Programmable Setback Thermostat worksheet is used to estimate the savings as a result of setting the heating thermostat to a lower value during a building’s unoccupied hours.
C39: · The Lighting worksheet is used to estimate the savings from a reduction in the number of lamps, lamp or ballast wattage, hours of use per year or a change to new efficient fixtures.
C41: · The Windows worksheet is used to estimate the savings from replacing inefficient windows with more efficient models or for the addition of storm windows. The worksheet is also used to estimate the savings from windows reduction. Reduced infiltration and improved U-values are included in the worksheet’s computation method.
C43: · The HVAC - Heating worksheet is used to estimate the savings when installing a new more efficient furnace or boiler or when changing the energy sources used for heating. ECMs that reduce the overall heat load, such as insulation or window replacement, should be considered in conjunction with heating plant replacement. Efficiency of an old heating plant is assumed at 65% unless field-tested.
C45: · The HVAC - Cooling worksheet is used to estimate the savings when installing new more efficient cooling units or when changing the energy sources used for cooling. ECMs that reduce the overall cooling load, such as insulation or window replacement, should be considered in conjunction with cooling plant replacement.
C47: · The Dishwasher - Energy Star® Upgrade worksheet is used to estimate savings when upgrading from a conventional dishwasher model to an ENERGY STAR® model. The worksheet is applicable for commercial-grade dishwashers with standard commercial rack size only. The worksheet is not applicable to residential units.
C49: · The Dishwasher - Other worksheet is used to estimate savings when upgrading to dishwashers that are not rated by ENERGY STAR®. The worksheet is applicable for commercial-grade dishwashers with standard commercial rack size, only. The worksheet is not applicable to residential units.
C51: Vendor/Contractor quotes or other cost estimates can be used as a basis for ECM costs. Vendors/Contractors may assist in the completion of the worksheets. The worksheets are designed to provide conservative estimates of savings using a generalized computation approach.
C53: The Department may request additional information, as needed, to determine the proposed project’s feasibility and estimated energy savings.
B55: ECM WORKSHEETS
C57: To add worksheets, please click on the appropriate project button below. To add additional worksheets for the same project, simply repeat click the worksheet button. The worksheets (and tabs) will be created and can be browsed by clicking the tabs at the bottom of the page.
L71: *Hand calculation friendly
C76: Requirements: By completing and signing this loan application, you have agreed to abide by all requirements of the Energy Loan Program.
C78: If the applicant provides any personal information as defined in §105.1500, RSMo concerning an entity exempt from federal income tax under Section 501(c) of the Internal Revenue Code of 1986, as amended, the applicant understands and agrees that it is voluntarily choosing to seek funding and providing such information for that purpose. The state will treat such personal information in accordance with §105.1500, RSMo.
B79: MO 780-3070 (12-24)

Sheet Requirements for Participation
B3: NOTICE OF FUNDING OPPORTUNITY
C5: Please refer to the website for notice of funding opportunity and detailed information regarding this loan offering.
B7: ELIGIBLE ENTITIES - FY2025 CYCLE
C9: Public Schools (K-12) Public Higher Education Institutions Local Governments
B11: TERMS - FY2025 CYCLE
C13: The interest rate for this FY2025 cycle is 2.5% with a 1% administration fee.
C14: Applications will be accepted for projects over $10,000 and up to $5,000,000.
C17: Loans (including interest and fees) are repaid within a 10-year period or less. Loans will not be made that have a payback period of less than six months.
B19: SELECTION CRITERIA - FY2025 CYCLE
C21: Recipients of loan financing will be determined on a first-come, first-served basis from December 2, 2024 to March 31, 2025, or until all funds are obligated--whichever comes first. Applications will be marked as officially received on the date all information needed to determine the feasibility of the project is received.
B23: FOR ASSISTANCE
C25: We are available to answer questions about the application process and technical requirements for submission of a loan application:
C26: Telephone: 855-522-2796
C27: dnr.mo.gov/energy/grants-loans/loan-program
B29: =Instructions!$B$79 -> MO 780-3070 (12-24)

Sheet Application Authorization Form
B2: SECTOR
B4: HOW DID YOU FIND US? (CHECK ALL THAT APPLY)
B6: ORGANIZATION NAME | J6: FEDERAL TAX ID (EIN) NUMBER
B8: NUMBER OF PEOPLE (students, staff, patients, customers, general public) THAT WOULD BENEFIT FROM THE IMPLEMENTATION OF THIS ENERGY PROJECT | I8: MAILING ADDRESS (HEADQUARTERS)
B10: COUNTY | G10: CITY | J10: ZIP+4
B12: CONTACT NAME | G12: TITLE | J12: TELEPHONE NUMBER WITH AREA CODE
B14: EMAIL ADDRESS | G14: TOTAL PROPOSED PROJECT COST | J14: TOTAL LOAN AMOUNT REQUESTED
B16: PROJECT TYPE | F16: ESTIMATED START DATE | J16: ESTIMATED PROJECT COMPLETION DATE
B18: PROJECT LOCATION (ATTACH LIST OR MAP FOR MULTIPLE LOCATIONS) | J18: ESTIMATED ANNUAL ENERGY COST SAVINGS
B20: BUILDING SPECIFIC INFORMATION--FOR MULTIPLE BUILDINGS, USE ADDITIONAL PAGES AND INCLUDE ALL INFORMATION LISTED BELOW
B21: TOTAL BUILDING AREA IN SQUARE FEET | F21: TOTAL AFFECTED BUILDING AREA IN SQUARE FEET | J21: APPROXIMATE NO. OF BUILDING OCCUPANTS
B23: FOR ORIGINAL BUILDING | F23: YEAR OF CONSTRUCTION | I23: HEATED AREA IN SQUARE FEET | K23: COOLED AREA IN SQUARE FEET
B25: FOR ADDITION #1 | F25: YEAR OF CONSTRUCTION | I25: HEATED AREA IN SQUARE FEET | K25: COOLED AREA IN SQUARE FEET
B27: FOR ADDITION #2 | F27: YEAR OF CONSTRUCTION | I27: HEATED AREA IN SQUARE FEET | K27: COOLED AREA IN SQUARE FEET
B29: FOR ADDITION #3 | F29: YEAR OF CONSTRUCTION | I29: HEATED AREA IN SQUARE FEET | K29: COOLED AREA IN SQUARE FEET
B31: ENERGY ANALYST OR OTHER WHO PREPARED ENERGY SAVINGS CALCULATIONS--INCLUDE NAME, TITLE, COMPANY AND TELEPHONE NUMBER
B33: BUSINESS TYPE NAMED ABOVE
B35: OPTIONAL QUESTIONS REGARDING MILITARY SERVICE
B36: 1. Have you ever served on active duty in the Armed Forces of the United States and separated from such service under conditions other than dishonorable?
B37: 2. Would you like to receive information and assistance regarding veterans benefits and services?
B38: 3. May the agency share your contact information with the Missouri Veterans Commission to provide such information?
B39: AUTHORIZATION
B40: The governing board or body has reviewed the ECM Summary and agrees that the building or system information is correct and the project and associated energy conservation measures have been correctly described. Any scanned or photocopied version of the signed original Application Authorization Form shall be considered original, and the governing board or body hereby waives any applicable objection on this basis. The governing board or body authorizes the contact person, named above, to provide any additional information relevant to the review and/or approval of this application. By signing this form, you agree to all requirements of the Energy Loan Program.
B41: The building, facility or system is owned and operated by the applicant.
B42: Is the completion of this project contingent on Energy Loan Program financing?
B43: PRINT NAME AND TITLE OF AUTHORIZED OFFICIAL | G43: SIGNATURE OF AUTHORIZED OFFICIAL | K43: DATE
B47: AUTHORIZATION FORM INSTRUCTIONS
C50: Below are instructions for selected Application Authorization form fields.
C51: Enter the information for the organization’s administrative office location.
C52: Enter the contact person’s information. The contact person is the individual who can answer the majority of the questions related to this application.
C53: Enter the total project cost for all energy conservation measures. This can include reasonable fees for design and commissioning.
C54: Select the project type. If selecting “System,” give a short description, such as motors or traffic signals.
C55: Enter the planned start and completion dates of construction activities.
C56: Some projects may include several building and/or system locations. Enter the total number of buildings or locations that will be directly affected by the proposed project. If a list or map is needed, enter “see attached.”
C57: Enter the estimated annual energy cost savings calculated on the Energy Conservation Measure (ECM) Summary.
C58: Enter the total area of the building that is served by the utility meters on the Fuel Use Summary.
C59: Enter the area of the building that will be affected by energy conservation measures.
C60: Enter the contact information for those who provided the technical documentation.
C61: Select the business type of the energy analyst identified above. If selecting “Other,” please describe.
C62: An authorized official must sign and date the application. An authorized official is an individual with authority to obligate an eligible entity by signature to a loan agreement and promissory note to repay the loan. Please understand that this is an application only, and it does not obligate your organization to accept a loan, if approved by the Department.
C63: U.S. Mail Submission: Print the completed Application Authorization Form and have an authorized official sign. Print the completed Fuel Use Summary, ECM Summary, all ECM worksheets applicable to your project, and copy the previous 12 months of utility bills. Mail the package to the address below. Electronic Submission: Print the completed Application Authorization Form, have an authorized official sign, and scan. Email the scanned Application Authorization Form, Fuel Use Summary, ECM Summary, all ECM worksheets applicable to your project, and copies of your previous 12 months of utility bills to the email address below.
C64: For assistance, please call 855-522-2796.
C66: Missouri Department of Natural Resources
C67: Division of Energy
C68: Attn: Energy Loan Program
C69: PO Box 176
C70: 1101 Riverside Drive
C71: Jefferson City, MO 65102
C72: Email: energyloanprogram@dnr.mo.gov
B74: =Instructions!$B$79 -> MO 780-3070 (12-24)

Sheet Fuel Use Summary (Consolidate) (hidden)
A1: Fuel Use Summary Selection | E1: List
A2: Worksheet | B2: Building Name | C2: Electricity ($/kWh) | D2: Fuel ($/MMBtu) | E2: Electricity ($/kWh) | F2: Fuel ($/MMBtu) | I2: Dropdown Building
A3: Null | E3: Choose electricity rate | F3: Choose fuel rate | I3: =$B$4:INDEX($B$4:$B$13,COUNTIF($B$4:$B$13,"?*")) ->  | K3: =VLOOKUP(J3,B4:C7,2,0) -> 
A4: Fuel Use Summary | B4: =IF('Fuel Use Summary'!$F$4=0,"",'Fuel Use Summary'!$F$4) ->  | C4: ='Fuel Use Summary'!$E$25 ->  | D4: ='Fuel Use Summary'!$J$26 ->  | E4: =IF(C4=0,NA(),"$"&C4&" - ("&B4&")") -> $ - () | F4: =IF(D4=0,NA(),"$"&D4&" - ("&B4&")") -> $ - () | G4: =ROW(C4:C13) -> 4
A5: Fuel Use Summary (2) | B5: =IF('Fuel Use Summary (2)'!$F$4=0,"",'Fuel Use Summary (2)'!$F$4) ->  | C5: ='Fuel Use Summary (2)'!$E$25 ->  | D5: ='Fuel Use Summary (2)'!$J$26 ->  | E5: =IF(C5=0,NA(),"$"&C5&" - ("&B5&")") -> $ - () | F5: =IF(D5=0,NA(),"$"&D5&" - ("&B5&")") -> $ - ()
A6: Fuel Use Summary (3) | B6: =IF('Fuel Use Summary (3)'!$F$4=0,"",'Fuel Use Summary (3)'!$F$4) ->  | C6: ='Fuel Use Summary (3)'!$E$25 ->  | D6: ='Fuel Use Summary (3)'!$J$26 ->  | E6: =IF(C6=0,NA(),"$"&C6&" - ("&B6&")") -> $ - () | F6: $ - ()
A7: Fuel Use Summary (4) | B7: =IF('Fuel Use Summary (4)'!$F$4=0,"",'Fuel Use Summary (4)'!$F$4) ->  | C7: ='Fuel Use Summary (4)'!$E$25 ->  | D7: ='Fuel Use Summary (4)'!$J$26 ->  | E7: =IF(C7=0,NA(),"$"&C7&" - ("&B7&")") -> $ - () | F7: $ - () | H7: =ISBLANK(E7) -> FALSE | I7: =IF(OR(C7="",ISBLANK(C1)),TRUE,FALSE) -> TRUE
A8: Fuel Use Summary (5) | B8: =IF('Fuel Use Summary (5)'!$F$4=0,"",'Fuel Use Summary (5)'!$F$4) ->  | C8: ='Fuel Use Summary (5)'!$E$25 ->  | D8: ='Fuel Use Summary (5)'!$J$26 ->  | E8: =IF(C8=0,NA(),"$"&C8&" - ("&B8&")") -> $ - () | F8: $ - ()
A9: Fuel Use Summary (6) | B9: =IF('Fuel Use Summary (6)'!$F$4=0,"",'Fuel Use Summary (6)'!$F$4) ->  | C9: ='Fuel Use Summary (6)'!$E$25 ->  | D9: ='Fuel Use Summary (6)'!$J$26 ->  | E9: $ - () | F9: $ - ()
A10: Fuel Use Summary (7) | B10: =IF('Fuel Use Summary (7)'!$F$4=0,"",'Fuel Use Summary (7)'!$F$4) ->  | C10: ='Fuel Use Summary (7)'!$E$25 ->  | D10: ='Fuel Use Summary (7)'!$J$26 ->  | E10: $ - () | F10: $ - ()
A11: Fuel Use Summary (8) | B11: =IF('Fuel Use Summary (8)'!$F$4=0,"",'Fuel Use Summary (8)'!$F$4) ->  | C11: ='Fuel Use Summary (8)'!$E$25 ->  | D11: ='Fuel Use Summary (8)'!$J$26 ->  | E11: $ - () | F11: $ - ()
A12: Fuel Use Summary (9) | B12: =IF('Fuel Use Summary (9)'!$F$4=0,"",'Fuel Use Summary (9)'!$F$4) ->  | C12: ='Fuel Use Summary (9)'!$E$25 ->  | D12: ='Fuel Use Summary (9)'!$J$26 ->  | E12: $ - () | F12: $ - ()
A13: Fuel Use Summary (10) | B13: =IF('Fuel Use Summary (10)'!$F$4=0,"",'Fuel Use Summary (10)'!$F$4) ->  | C13: ='Fuel Use Summary (10)'!$E$25 ->  | D13: ='Fuel Use Summary (10)'!$J$26 ->  | E13: $ - () | F13: $ - ()
B16: IF('Fuel Use Summary'!E4=0,"Baseline",'Fuel Use Summary'!E4) | E16: Value
E17: =$B$4:INDEX(B4:B13,0) -> 
B18: ="" -> 

Sheet Lighting (hidden)
B4: BUILDLING | H4: LOCATION | M4: DATE
B6: INSTRUCTIONS
C7: To estimate the savings when more efficient lighting is installed, the following information must be known:
C8: The number of existing fixtures being changed. | J8: The number of new fixtures.
C9: The wattage of each existing fixture. | J9: The wattage of each new fixture.
C10: The number of hours of use per year in the past. | J10: The number of hours of use per year in the future.
C11: The cost per kilowatt hour of electricity.
C13: Please Note:
C14: If the projects involve several buildings or meters, please submit one worksheet per building or per meter.
C15: If the project involves several types of fixtures, please submit one worksheet per type.
C16: Please find example of hours of use under the Additional Instruction section (Page 2).
B18: ATTENTION
B19: **The Division of Energy reserves the right to determine if the worksheet is appropriate for the project and may request additional information. An Energy Conservation Measure (ECM) has the potential of affecting other areas within your facility or system.**
B20: SAVINGS CALCULATIONS
C22: 1 | D22: Enter the number of existing fixtures being changed | O22: Fixtures
C23: 2 | D23: Enter the wattage of each existing fixture (Input wattages) | O23: Watts
C24: 3 | D24: Enter the hours of use below:
F25: Monday | G25: Tuesday | H25: Wednesday | I25: Thursday | J25: Friday | K25: Saturday | L25: Sunday | M25: # Weeks | N25: Total
C26: Normal Schedule | N26: =IF(M26=0,"",SUM(F26:L26)*M26) -> 
C27: Alternate Schedule 1 | N27: =IF(M27=0,"",SUM(F27:L27)*M27) -> 
C28: Alternate Schedule 2 | N28: =IF(M28=0,"",SUM(F28:L28)*M28) -> 
M29: Total | N29: =IF(N26="","",SUM(N26:N28)) ->  | O29: Hours
C31: 4 | D31: Multiply (line 1 x line 2) by the total of line 3 | L31: =IF(N29="","",L22*L23*N29/1000) ->  | O31: kWh/year
C34: 5 | D34: Enter the number of new fixtures | O34: Fixtures
C35: 6 | D35: Enter the wattage of each new fixture (Input wattages) | O35: Watts
C36: 7 | D36: Enter the new hours of use (reduced hours based on lighting controls if applicable)
F37: Monday | G37: Tuesday | H37: Wednesday | I37: Thursday | J37: Friday | K37: Saturday | L37: Sunday | M37: # Weeks | N37: Total
C38: Normal Schedule | N38: =IF(M38=0,"",SUM(F38:L38)*M38) -> 
C39: Alternate Schedule 1 | N39: =IF(M39=0,"",SUM(F39:L39)*M39) -> 
C40: Alternate Schedule 2 | N40: =IF(M40=0,"",SUM(F40:L40)*M40) -> 
M41: Total | N41: =IF(N38="","",SUM(N38:N40)) ->  | O41: Hours
C43: 8 | D43: Multiply (line 5 x line 6) by the total of line 7 | L43: =IF(N41="","",L34*L35*N41/1000) ->  | O43: kWh/year
C46: 9 | D46: Savings: Subtract line 8 from line 4 | L46: =IFERROR(IF(L43="","",L31-L43),"") ->  | O46: kWh/year
C48: 10 | D48: Enter the energy cost (Based on the Fuel Use Summary) | L48: =IFERROR(VLOOKUP(B5,'Fuel Use Summary (Consolidate)'!B4:C13,2,0),"") ->  | O48: $/kWh
B50: ANNUAL SAVINGS
C52: 11 | D52: Multiply line 9 by line 10 | L52: =IFERROR(L46*L48,"") ->  | O52: $/Year
B54: PROJECT COST
C56: 12 | D56: Enter the total cost of the project including material, labor and design
B58: SIMPLE PAYBACK
C60: 13 | D60: Divide line 12 by line 11 | L60: =IFERROR(L56/L52,"") ->  | O60: Years
B64: DESCRIPTION PAGE
B65: Lighting/Motion Sensor Energy Conservation Measure
B66: Describe the existing system and the proposed energy conservation measure (use additional sheets if necessary):
B85: ADDITIONAL INSTRUCTION
C87: This additional instruction provides an example to fill out the hours of use schedule.
C89: Example: The school has a regular schedule to have the lights on from 7:30 AM - 4:30 PM (9 hours) the entire week for 36 weeks a year while in session. The school has an alternate schedule to have the lights on from 7:30 AM - 4:30 PM (9 hours) on Monday, Wednesday and Friday for 8 weeks a year in summer session. The school has another alternate schedule to have the lights on from 7:30 AM - 12:30 PM (5 hours) from Monday to Friday for 4 weeks a year during breaks. The hours of use can be entered below:
C95: 3 | D95: Enter the hours of use below:
F96: Monday | G96: Tuesday | H96: Wednesday | I96: Thursday | J96: Friday | K96: Saturday | L96: Sunday | M96: # Weeks | N96: Total
C97: Normal Schedule | F97: 9 | G97: 9 | H97: 9 | I97: 9 | J97: 9 | K97: 9 | L97: 9 | M97: 36 | N97: =SUM(F97:L97)*M97 -> 2268
C98: Alternate Schedule 1 | F98: 9 | G98: 0 | H98: 9 | I98: 0 | J98: 9 | K98: 0 | L98: 0 | M98: 8 | N98: =SUM(F98:L98)*M98 -> 216
C99: Alternate Schedule 2 | F99: 5 | G99: 5 | H99: 5 | I99: 5 | J99: 5 | K99: 0 | L99: 0 | M99: 4 | N99: =SUM(F99:L99)*M99 -> 100
M100: Total | N100: =SUM(N97:N99) -> 2584 | O100: Hours
C102: The total calculation is a sum of each schedule multiplied by the number of weeks. Total number of weeks should be totaled for 52 weeks. All schedules are sub-totaled adding hours of use Monday - Sunday. For this example, the "Normal Schedule" total is calculated by (9 + 9 + 9 + 9 + 9 + 9 + 9) x 36 = 2,268 hours. The "Alternate Schedule 1" is calculated by (9 + 0 + 9 + 0 + 9 + 0 + 0) x 8 = 216 hours. The "Alternate Schedule 2" is calculated by (5 + 5 + 5 + 5 + 5 + 0 + 0) x 4 = 100 hours. The total for all schedules is 2,268 + 216 + 100 = 2,584 hours.
C109: The school plans to install motion sensors. The motion sensors help reduce the hours of use during the weekend while in session. The lights will only be on for cleaning and maintenance for a total of 1 hour each day during the weekend. To enter item 6 on the worksheet, the "Normal Schedule" is changed from 9 hours to 1 hour on Saturday and Sunday.
C113: 6 | D113: Enter the new hours of use (reduced hours based on lighting controls)
F114: Monday | G114: Tuesday | H114: Wednesday | I114: Thursday | J114: Friday | K114: Saturday | L114: Sunday | M114: # Weeks | N114: Total
C115: Normal Schedule | F115: 9 | G115: 9 | H115: 9 | I115: 9 | J115: 9 | K115: 1 | L115: 1 | M115: 36 | N115: =SUM(F115:L115)*M115 -> 1692
C116: Alternate Schedule 1 | F116: 9 | G116: 0 | H116: 9 | I116: 0 | J116: 9 | K116: 0 | L116: 0 | M116: 8 | N116: =SUM(F116:L116)*M116 -> 216
C117: Alternate Schedule 2 | F117: 5 | G117: 5 | H117: 5 | I117: 5 | J117: 5 | K117: 0 | L117: 0 | M117: 4 | N117: =SUM(F117:L117)*M117 -> 100
M118: Total | N118: =SUM(N115:N117) -> 2008 | O118: Hours
B124: =Instructions!$B$79 -> MO 780-3070 (12-24)

Sheet HVAC - Cooling Plant (hidden)
B4: BUILDING | H4: LOCATION | N4: DATE
B5: BUILDING
B6: INSTRUCTIONS
C7: To estimate the savings possible from a cooling plant replacement that is intended to increase the efficiency and/or change energy sources, the following information must be known:
C9: The annual cooling cost.
C10: The efficiency of the existing cooling plant [SEER, EER, COP or (1/kw per ton)].
C11: The efficiency of the proposed cooling plant [SEER, EER, COP or (1/kw per ton)]. (Use same type rating as above.)
C12: The existing energy cost ($/million Btu).
C13: The proposed energy cost ($/million Btu).
C15: Please Note:
C16: The worksheet is not applicable to estimate the savings for Variable Air Volume (VAV), Constant Air Volume (CAV) or other commercial building systems that perform cooling year round.
C17: Item 5. If the rating is SEER or EER, use the conversion table below (Page 2).
B19: ATTENTION
B20: **The Department reserves the right to determine if the worksheet is appropriate for the project and may request additional information. An Energy Conservation Measure (ECM) has the potential of affecting other areas within your facility or system.**
B21: SAVINGS CALCULATIONS
C23: 1 | D23: Total the four electric bills where cooling is included (e.g. June through September) and enter that amount | O23: 0
C25: 2 | D25: Enter the amount of the neutral month (e.g., May) energy bill | O25: 0
C27: 3 | D27: Multiply line 2 by 4.0 | M27: =O25*4 -> 0
C29: 4 | D29: Subtract line 3 from line 1 - ANNUAL COOLING COST | M29: =O23-M27 -> 0
C31: 5 | D31: Enter the SEER, EER, COP, or (1/kw per ton) for the existing cooling plant
C33: 6 | D33: Multiply line 4 by line 5 | M33: =M29*O31 -> 0
C35: 7 | D35: Enter the SEER, EER, COP, or (1/kw per ton) for the proposed cooling plant (same type rating as line 5)
C37: 8 | D37: Divide line 6 by line 7 - PROJECTED ANNUAL COOLING COST | M37: =IFERROR(M33/O35,0) -> 0
B39: AREAS AFFECTED
C41: 9 | D41: Total area cooled by meter | Q41: ft2
C43: 10 | D43: Area affected by the proposed project | Q43: ft2
C45: 11 | D45: Divide line 9 by line 10 | M45: =IFERROR(O43/O41,0) -> 0
B48: ANNUAL SAVINGS
C50: 12 | D50: Subtract line 8 from line 4 and multiply by line 11 - ANNUAL COOLING SAVINGS
M51: =(M29-M37)*M45 -> 0 | O51: /Year
B53: PROJECT COST
C55: 13 | D55: Enter the total cost for the proposed project including material, labor, and design | M55: 0
B57: SIMPLE PAYBACK
C59: 14 | D59: Divide line 13 by line 12 | K59: =IFERROR(M55/M51,0) -> 0 | M59: Years
B63: DESCRIPTION PAGE
B64: Cooling Plant Replacement Energy Conservation Measure
B65: Describe the existing system and the proposed energy conservation measure (use additional sheets if necessary):
B109: SEER RATING TABLE
C110: If your SEER for cooling equipment is unknown, please use the estimated formula in the table to estimate your SEER rating. Based on a study published by Oak Ridge National Laboratory, the cooling efficiencies in SEER can be estimated by the manufactured date.
D113: Central Air Conditioner or Heat Pump Cooling Efficiency (SEER)
D114: 1970 and earlier | F114: SEER = 6.0
D115: 1971 - 1996 | F115: SEER = 9.5 + 0.1786 x (year manufactured - 1990)
D116: 1997 - 2002 | F116: SEER = 10.75 + 0.0750 x (year manufactured - 1997)
D117: 2003 - 2007 | F117: SEER = 11.2 + 0.3600 x (year manufactured - 2003)
D118: 2008 and later | F118: SEER = 13.0
D120: Reference: Oak Ridge National Laboratory, September 7, 2007
B122: COP CONVERSION TABLE
D124: Conversion Formula
D125: COP = SEER x 0.293 = EER / 3.142
B130: =Instructions!$B$79 -> MO 780-3070 (12-24)

Sheet HVAC - Heating Plant (hidden)
B4: BUILDING | H4: LOCATION | N4: DATE
B6: INSTRUCTIONS
C7: To estimate the savings possible from a heating plant replacement that is intended to increase the efficiency and/or change energy sources, the following information must be known:
C9: The annual heating cost.
C10: The efficiency of the existing heating plant (in percent).
C11: The efficiency of the proposed heating plant (in percent).
C12: The existing energy cost ($/million Btu).
C13: The proposed energy cost ($/million Btu).
B15: ATTENTION
B16: **The Department reserves the right to determine if the worksheet is appropriate for the project and may request additional information. An Energy Conservation Measure (ECM) has the potential of affecting other areas within your facility or system.**
B17: SAVINGS CALCULATIONS
C19: 1 | D19: Total the seven energy bills where heating is included in (e.g. Oct. through April) and enter that amount
C21: 2 | D21: Enter the amount of the neutral month (i.e., May) energy bill | O21: 0
C23: 3 | D23: Multiply line 2 by 7.0 | M23: =O21*7 -> 0
C25: 4 | D25: Subtract line 3 from line 1 - ANNUAL HEATING COST | M25: =O19-M23 -> 0
C27: 5 | D27: Enter the efficiency in percentage (use % symbol) or HSPF for the existing heating plant
C29: 6 | D29: Multiply line 4 by line 5 | M29: =M25*O27 -> 0
C31: 7 | D31: Enter the efficiency in percentage (use % symbol) or HSPF for the proposed heating plant
C33: 8 | D33: Divide line 6 by line 7 - PROJECTED ANNUAL HEATING COST | M33: =IFERROR(M29/O31,0) -> 0
E35: If changing fuel source adjust PROJECTED ANNUAL HEATING COST as follows:
E36: 9. Enter the existing energy cost ($/million BTU) | O36: 0
E38: 10. Enter the proposed energy cost ($/million BTU) | O38: 0
E40: 11. Divide line 10 by line 9 | M40: =IFERROR(O38/O36,0) -> 0
E42: 12. Multiply line 8 by line 11 - AMENDED PROJECTED HEATING COST | M42: =M33*M40 -> 0
B44: AREAS AFFECTED
C46: 13 | D46: Total area heated by meter | Q46: ft2
C48: 14 | D48: Area affected by the proposed project | Q48: ft2
C50: 15 | D50: Divide line 14 by line 13 | M50: =IFERROR(O48/O46,0) -> 0
B53: ANNUAL SAVINGS
C55: 16 | D55: Subtract line 8 (if no change in energy source) or line 12 (if a change in fuel source) from line 4 and multiply by line 15 - ANNUAL HEATING SAVINGS
M57: =(IF(M42>0,M25-M42,M25-M33))*M50 -> 0 | O57: /Year
B59: PROJECT COST
C61: 17 | D61: Enter the total cost for the proposed project including material, labor, and design | M61: 0
B63: SIMPLE PAYBACK
C65: 18 | D65: Divide line 17 by line 16 | K65: =IFERROR(M61/M57,0) -> 0 | M65: Years
B69: DESCRIPTION PAGE
B70: Heating Plant Replacement Energy Conservation Measure
B71: Describe the existing system and the proposed energy conservation measure (use additional sheets if necessary):
B136: =Instructions!$B$79 -> MO 780-3070 (12-24)

Sheet Insulation (hidden)
B4: BUILDING | H4: LOCATION | M4: DATE
B6: CHECK THE TYPE OF INSULATION PROJECT UNDER CONSIDERATION
B9: INSTRUCTIONS
C10: To estimate the savings of adding insulation to the ceiling or wall, the following information must be known: | S10: Type of insulation install | U10: Combo Box Value | V10: Value on the main sheet
C11: The area of the insulation in square feet. | J11: The heating/cooling plant efficiency (percentage). | S11: Choose Type of Insulation | U11: 1 | V11: =IF(U11=2,1,IF(U11=3,0.75,IF(U11=1,""))) -> 
C12: The old R-value and the new total R-value. | J12: The heating energy cost ($/million BTU)/cooling energy cost ($/kWh). | S12: Continous Insulation | U12: 1 x gross area for continuous insulation
S13: Non-Continuous Insulation | U13: 0.75 x gross area for non-continuous insulation
C14: Please Note:
C15: Multiple Buildings. If the project involves multiple buildings, please submit one worksheet per building. | J15: Item 10. For SEER and EER rating, please use the COP conversion (Page 2).
C17: Item 9. The efficiency can be obtained from the nameplate data including (but not limited to) AFUE, percentage from btu out/btu in or percentage ratio of efficiency. For example, if the percentage ratio efficiency is 80%, please enter 80. | J17: Item 13-14. Degree Days Table provides Heating Degree Days (HDD) and Cooling Degree Days (CDD) depending on location. If the HDD and CDD are known, the numbers may be entered.
B21: ATTENTION
B22: **The Department reserves the right to determine if the worksheet is appropriate for the project and may request additional information. An Energy Conservation Measure (ECM) has the potential of affecting other areas within your facility or system.**
B23: SAVINGS CALCULATIONS
S24: City | T24: Degree Days 65 F | V24: Combo Box List | W24: Combo Box Value | X24: Value on the main sheet
C25: 1 | D25: Enter the old R-value | T25: Heating | U25: Cooling | V25: Choose nearest city | X25: Heating | Y25: Cooling
C26: 2 | D26: Enter the R-value of the proposed insulation | S26: Columbia | T26: 5078 | U26: 1269 | V26: Columbia | W26: 1 | X26: =IF($W$26=2,T26,IF($W$26=1,"",IF($W$26=3,T27,IF($W$26=4,T28,IF($W$26=5,T29,IF($W$26=6,T30)))))) ->  | Y26: =IF($W$26=2,U26,IF($W$26=1,"",IF($W$26=3,U27,IF($W$26=4,U28,IF($W$26=5,U29,IF($W$26=6,U30)))))) -> 
C27: 3 | D27: Subtract line 2 from line 1 | L27: =IFERROR(L26-L25,"") -> 0 | S27: Kansas City | T27: 5161 | U27: 1421 | V27: Kansas City
C28: 4 | D28: Multiply line 1 by line 2 | L28: =IFERROR(L25*L26,"") -> 0 | S28: St. Louis | T28: 4750 | U28: 1475 | V28: St. Louis
C29: 5 | D29: Divide line 3 by line 4 (U-Value of the insulation improvement) | L29: =IFERROR(((L26-L25)/(L25*L26)),"") ->  | S29: St. Joseph | T29: 5435 | U29: 1334 | V29: St. Joseph
S30: Springfield | T30: 4570 | U30: 1382 | V30: Springfield
C31: 6 | D31: Choose the characteristic of insulation installation
C32: 7 | D32: Enter characteristic of insulation installation factor | L32: =V11 -> 
C35: 8 | D35: Enter efficiency of the heating plant | O35: Percent
C36: 9 | D36: Enter COP of the cooling plant
D37: If the rating is EER or SEER, use the conversion table below (page 2).
C38: 10 | D38: Enter subject area to be insulated (Attic, Crawl Space, Wall, Roof, others) | O38: ft2
C40: 11 | D40: Choose the location nearest the building
C41: 12 | D41: Enter Heating Degree Days ( if unknown, Use Degree Days table) | L41: =IF($W$26=2,T26,IF($W$26=1,"",IF($W$26=3,T27,IF($W$26=4,T28,IF($W$26=5,T29,IF($W$26=6,T30)))))) -> 
C42: 13 | D42: Enter Cooling Degree Days (if unknown, Use Degree Days table) | L42: =IF($W$26=2,U26,IF($W$26=1,"",IF($W$26=3,U27,IF($W$26=4,U28,IF($W$26=5,U29,IF($W$26=6,U30)))))) -> 
C45: 14 | D45: Multiply (0.77 x line 5 x line 7 x line 10 x line 12 x 24) and divide by line 8, then by 1,000,000 | L45: =IFERROR(0.77*L29*L32*L38*L41*24/L35/1000000,"") ->  | O45: MMBtu/Year
D46: (Heating Savings Reduction)
C47: 15 | D47: Multiply (line 5 x line 7 x line 10 x line 12 x 24) and divide by line 9, then by 3412 | L47: =IFERROR(L29*L32*L38*L42*24/L36/3412,"") ->  | O47: kWh/Year
D48: (Cooling Savings Reduction)
B49: ENERGY COST
C51: 16 | D51: Enter energy cost for heating ($/MMBtu) | L51: =IFERROR(VLOOKUP(B5,'Fuel Use Summary (Consolidate)'!B4:D13,3,0),0) -> 0 | O51: $/MMBtu
C52: 17 | D52: Enter energy cost for cooling ($/kWh) | L52: =IFERROR(VLOOKUP(B5,'Fuel Use Summary (Consolidate)'!B4:D13,2,0),0) -> 0 | O52: $/kWh
C53: 18 | D53: Multiply line 14 by line 16 (Heating Cost Savings) | L53: =IFERROR(L45*L51,0) -> 0
C54: 19 | D54: Multiply line 15 by line 17 (Cooling Cost Savings) | L54: =IFERROR(L47*L52,0) -> 0
B56: ANNUAL SAVINGS
C58: 20 | D58: Add line 18 and line 19 (Annual Cost Savings) | K58: =IF(ISERROR(+#REF!*#REF!),"",(+#REF!*#REF!)) ->  | L58: =IFERROR(L53+L54,"") -> 0 | O58: $/Year
B60: PROJECT COST
C62: 21 | D62: Enter the total cost of the project including material, labor, and design
B64: SIMPLE PAYBACK
C66: 22 | D66: Divide line 21 by line 20 | K66: =IF(ISERROR(+L62/K58),"",(+L62/K58)) ->  | L66: =IFERROR(L62/L58,"") ->  | O66: Years
B70: DESCRIPTION PAGE
B71: Wall or Ceiling Insulation Energy Conservation Measure
B72: Describe the existing system and the proposed energy conservation measure (use additional sheets if necessary):
B81: DEGREE DAY TABLE
C82: Please use this "Degree Day Table" to determine "Degree Days" for item 12 and 13 in the Wall or Ceiling Insulation Worksheet.
D84: City | F84: Degree Days (65F)
F85: Heating | G85: Cooling
D86: Columbia | F86: 5078 | G86: 1269
D87: Kansas City | F87: 5161 | G87: 1421
D88: St. Louis | F88: 4750 | G88: 1475
D89: St. Joseph | F89: 5435 | G89: 1334
D90: Springfield | F90: 4570 | G90: 1382
B92: SEER RATING TABLE
C93: If your SEER for cooling equipment is unknown, please use the estimated formula in the table to estimate your SEER rating. Based on a study published by Oak Ridge National Laboratory, the cooling efficiencies in SEER can be estimated by the manufactured date.
D96: Central Air Conditioner or Heat Pump Cooling Efficiency (SEER)
D97: 1970 and earlier | F97: SEER = 6.0
D98: 1971 - 1996 | F98: SEER = 9.5 + 0.1786 x (year manufactured - 1990)
D99: 1997 - 2002 | F99: SEER = 10.75 + 0.0750 x (year manufactured - 1997)
D100: 2003 - 2007 | F100: SEER = 11.2 + 0.3600 x (year manufactured - 2003)
D101: 2008 and later | F101: SEER = 13.0
D103: Reference: Oak Ridge National Laboratory, September 7, 2007
B105: COP CONVERSION TABLE
D107: Conversion Formula
D108: COP = SEER x 0.293 = EER / 3.142
B134: =Instructions!$B$79 -> MO 780-3070 (12-24)

Sheet Windows Replacement (hidden)
B4: BUILDING | H4: LOCATION | O4: DATE
B6: INSTRUCTIONS
C7: To estimate the savings of windows/doors replacement/reduction, the following information must be known:
C8: The R-Value of the new wall (Window reduction only). U-Value=1/R-Value | J8: The energy cost ($/million Btu).
C9: Type of the existing and new window (See U-Value table below) | J9: The heating/cooling plant efficiency (in percent).
C10: The total area of the windows being replaced (Square feet). | J10: For heating/cooling plant efficiency, see additional instruction section.
B11: ATTENTION
B12: **The Department reserves the right to determine if the worksheet is appropriate for the project and may request additional information. An Energy Conservation Measure (ECM) has the potential of affecting other areas within your facility or system.**
B13: SAVINGS CALCULATIONS INPUT
C15: Existing Windows | K15: New Windows
C16: 1 | D16: Enter existing windows area | H16: sq.ft. | K16: 7 | L16: Enter new windows area | P16: sq.ft.
C17: 2 | K17: 8
C18: 3 | K18: 9
C19: 4 | K19: 10
C20: 5 | K20: 11
C21: 6 | D21: U-Value of existing windows | G21: =IF(OR(T67=1,U67=1,V67=1,AH27=1),"Select items above",U70) -> Select items above | K21: 12 | L21: U-Value of new windows | O21: =IF(OR(W67=1,X67=1,Y67=1,AH28=1),"Select items above",X70) -> Select items above
C24: New Wall (Window Reduction) | K24: Building Characteristics
C25: 13 | D25: Enter new wall area | H25: sq.ft. | K25: 18 | L25: Enter average building height | P25: feet | AH25: Leakage | AM25: Energy consumption type | AN25: Control Value | AQ25: Heating Efficiency | AR25: Cooling Efficiency | AT25: Building Energy fillable
C26: 14 | D26: Enter R-Value of the new wall frame | K26: 19 | T26: New Wall U-Value calculations | W26: Type of Buildings | AA26: Control Value | AC26: Leakage | AD26: In2/ft2 | AH26: Control Value | AI26: Value on the main sheet | AM26: Select the energy consumption type | AN26: 1 | AQ26: =IF(OR(O29="",O29=0),0.01,O29) -> 0.01 | AR26: =O30 ->  | AT26: =IF(OR(AN26=1),TRUE,FALSE) -> TRUE
C27: 15 | D27: Enter R-Value of additional insulation | K27: 20 | T27: U-Value of the new wall | U27: =(0.25*(1/3.5))+(0.75*(1/H26)) ->  | W27: Select the type of cooling/heating system | AA27: 1 | AC27: Select leakage level | AG27: Exisiting Windows | AH27: 2 | AI27: =IF(AH27=1,"",INDEX(AD28:AD32,AH27-1,1)) -> 0.01 | AM27: Fuel heating / Electric cooling | AO27: Enter heating plant efficiency | AP27: Percent
C28: 16 | K28: 21 | T28: U-Value of the additional insulation | U28: =1/H27 ->  | W28: Individual units, Window units, radiant heater | AC28: Tight - Construction supervised by air-sealing specialist | AD28: 0.01 | AG28: New Windows | AH28: 1 | AI28: =IF(AH28=1,"",INDEX(AD28:AD32,AH28-1,1)) ->  | AM28: Electric heating / Electric cooling | AO28: Enter the cooling plant COP | AP28: ="" -> 
C29: 17 | D29: Total U-Value of the new wall | L29: =IF(AN26=1,"",AO27) ->  | O29: =IF(AN26=1,"",0) ->  | P29: =IF(AN26=1,"",AP27) ->  | T29: Total U-Value of the new wall | U29: =(U27*U28)/(U27+U28) ->  | W29: Roof-top unit, Central HVAC system | AC29: Good - Carefully sealed by professional builders | AD29: 0.02 | AG29: New Walls | AH29: 1 | AI29: =IF(AH29=1,"",INDEX(AD28:AD32,AH29-1,1)) ->  | AM29: Fuel heating only | AO29: Enter fuel cost per MMBtu | AP29: $/MMBtu
L30: =IF(OR(AN26=2,AN26=3),AO28,"") ->  | O30: =IF(OR(AN26=1,AN26=4,AN26=5),"",0) ->  | P30: =IF(OR(AN26=2,AN26=3),AP28,"") ->  | AC30: Average - Typical current construction | AD30: 0.04 | AM30: Electric heating only | AO30: Enter electricity cost per kWh | AP30: $/kWh
E31: =IF(OR(G25="",H26="",H27="",AH29=1),"Enter items above",U29) -> Enter items above | L31: =IF(OR(AN26=2,AN26=4),AO29,"") ->  | O31: =IFERROR(IF(OR(AN26=1,AN26=3,AN26=5),"",VLOOKUP(B5,'Fuel Use Summary (Consolidate)'!B4:D13,3,0)),"") ->  | P31: =IF(OR(AN26=2,AN26=4),AP29,"") ->  | AC31: Leaky - Typical 1970 construction | AD31: 0.08
L32: =IF(OR(AN26=1,AN26=4),"",AO30) ->  | O32: =IFERROR(IF(OR(AN26=1,AN26=4),"",VLOOKUP(B5,'Fuel Use Summary (Consolidate)'!B4:D13,2,0)),"") ->  | P32: =IF(OR(AN26=1,AN26=4),"",AP30) ->  | AC32: Very leaky - Original pre-1970 construction | AD32: 0.15
B34: ANNUAL SAVINGS
J35: Energy unit savings | O35: Energy cost savings
C36: 22 | D36: Savings in Summer | J36: =IFERROR(INDEX(AJ86:AJ90,AN26,1),"") ->  | M36: =IFERROR(INDEX(AK86:AK87,AN26,1),"") ->  | O36: =IFERROR(INDEX(AN86:AN90,AN26,1),"") -> 
C37: 23 | D37: Savings in Winter | J37: =IFERROR(INDEX(AL86:AL90,AN26,1),"") ->  | M37: =IFERROR(INDEX(AM86:AM87,AN26,1),"") ->  | O37: =IFERROR(INDEX(AO86:AO90,AN26,1),"") -> 
B39: PROJECT COST AND SIMPLE PAYBACK
C40: 24 Enter the total cost (Including material, labor and design) | J40: Total Annual Savings | O40: Simple Payback
J41: =IFERROR(O36+O37,"") ->  | N41: years | O41: =IFERROR(C41/J41,"") ->  | Q41: years
B44: ENERGY SAVINGS CALCULATION (DED/DE INTERNAL USE ONLY)
C45: Leakage | J45: Existing Windows | N45: New Windows | P45: New Wall
C47: 25 | D47: Unit Leakage Areas in2/ft2 | J47: =AI27 -> 0.01 | N47: =AI28 ->  | P47: =AI29 -> 
C48: 26 | D48: Average Leakage, in2 | J48: =IFERROR(G16*J47,"") -> 0 | N48: =IFERROR(O16*N47,"") ->  | P48: =IFERROR(G25*P47,"") -> 
C49: Summer
C50: 27 | D50: IDF | J50: =IFERROR((($AC$67+O25*($V$77-$V$76)*($AC$68+$AC$69*(0.016/J48)))/1000),"") ->  | N50: =IFERROR(($AC$67+O25*($V$77-$V$76)*($AC$68+$AC$69*(0.016/N48)))/1000,"") ->  | P50: =IFERROR(($AC$67+O25*($V$77-$V$76)*($AC$68+$AC$69*(0.016/P48)))/1000,"") -> 
C51: 28 | D51: Infiltration airflow rate | J51: =IFERROR(J48*J50,"") ->  | M51: CFM | N51: =IFERROR(N48*N50,"") ->  | O51: CFM | P51: =IFERROR(P48*P50,"") ->  | Q51: CFM
C52: 29 | D52: Sensible heat loss through leaks | J52: =IFERROR(IF($AA$27=3,0,1.1*J51*($V$77-$V$76)),"") ->  | M52: Btu/h | N52: =IFERROR(IF(AA27=3,0,1.1*N51*($V$77-$V$76)),"") ->  | O52: Btu/h | P52: =IFERROR(IF(AA27=3,0,1.1*P51*($V$77-$V$76)),"") ->  | Q52: Btu/h
C53: 30 | D53: Latent heat loss through leaks | J53: =IFERROR(IF(AA27=3,0,4840*J51*($X$77-$X$76)),"") ->  | M53: Btu/h | N53: =IFERROR(IF(AA27=3,0,4840*N51*($X$77-$X$76)),"") ->  | O53: Btu/h | P53: =IFERROR(IF(AA27=3,0,4840*P51*($X$77-$X$76)),"") ->  | Q53: Btu/h
C54: 31 | D54: Calculate the energy loss total | J54: =IFERROR((((G21*G16*($V$77-$V$76))+J52+J53)*AK76*24)/($O$30*1000000*($V$77-$V$76))*$U$84,"") ->  | M54: MMBtu | N54: =IFERROR((((O21*O16*($V$77-$V$76))+N52+N53)*AK76*24)/($O$30*1000000*($V$77-$V$76))*$U$84,"") ->  | O54: MMBtu | P54: =IFERROR((((E31*G25*($V$77-$V$76))+P52+P53)*AK76*24)/($O$30*1000000*($V$77-$V$76))*$U$84,"") ->  | Q54: MMBtu
C56: Winter
C57: 32 | D57: IDF | J57: =IFERROR(($AB$67+O25*($U$76-$U$77)*($AB$68+$AB$69*(0.016/J48)))/1000,"") ->  | N57: =IFERROR(($AB$67+O25*($U$76-$U$77)*($AB$68+$AB$69*(0.016/N48)))/1000,"") ->  | P57: =IFERROR(($AB$67+O25*($U$76-$U$77)*($AB$68+$AB$69*(0.016/P48)))/1000,"") -> 
C58: 33 | D58: Infiltration airflow rate | J58: =IFERROR(J48*J57,"") ->  | M58: CFM | N58: =IFERROR(N48*N57,"") ->  | O58: CFM | P58: =IFERROR(P48*P57,"") ->  | Q58: CFM
C59: 34 | D59: Sensible heat loss through leaks | J59: =IFERROR(IF(AA27=3,0,1.1*J58*($U$76-$U$77)),"") ->  | M59: Btu/h | N59: =IFERROR(IF(AA27=3,0,1.1*N58*($U$76-$U$77)),"") ->  | O59: Btu/h | P59: =IFERROR(IF(AA27=3,0,1.1*P58*($U$76-$U$77)),"") ->  | Q59: Btu/h
C60: 35 | D60: Calculate the energy loss total | J60: =IFERROR((((G21*G16*($U$76-$U$77))+J59)*AJ76*24)/(O29*1000000*($U$76-$U$77))*$U$84,"") ->  | M60: MMBtu | N60: =IFERROR((((O21*O16*($U$76-$U$77))+N59)*AJ76*24)/($O$29*1000000*($U$76-$U$77))*$U$84,"") ->  | O60: MMBtu | P60: =IFERROR((((E31*G25*($U$76-$U$77))+P59)*AJ76*24)/($O$29*1000000*($U$76-$U$77))*$U$84,"") ->  | Q60: MMBtu
B64: DESCRIPTION PAGE
B65: Windows/Doors Replacement/Reduction Energy Conservation Measure | T65: Control Value for Existing Windows | W65: Control Value for New Windows | AA65: IDF Coefficient
B66: Describe the existing system and the proposed energy conservation measure (use additional sheets if necessary): | T66: Glass Type | U66: Type of Windows | V66: Storm Windows | W66: Glass Type | X66: Type of Windows | Y66: Storm Windows | AB66: Winter 7.5 mph | AC66: Summer 15 mph
T67: 2 | U67: 3 | V67: 1 | W67: 1 | X67: 1 | Y67: 1 | AA67: I0 | AB67: 343 | AC67: 698
T68: U-Value | U68: =INDEX('Windows U-Value'!G8:S55,'Windows Replacement'!T67-1,'Windows Replacement'!U67-1) -> 1.07 | W68: U-Value | X68: =INDEX('Windows U-Value'!G8:S55,'Windows Replacement'!W67-1,'Windows Replacement'!X67-1) ->  | AA68: I1 | AB68: 0.88 | AC68: 0.81
T69: U-Value Storm Windows | U69: =IF(V67=3,1.23,FALSE) -> FALSE | W69: U-Value Storm Windows | X69: =IF(Y67=3,1.23,FALSE) -> FALSE | AA69: I2 | AB69: 0.28 | AC69: 0.53
T70: U-Value Total | U70: =IF(U69=FALSE,U68,(U68*U69)/(U68+U69)) -> 1.07 | W70: U-Value Total | X70: =IF(X69=FALSE,X68,(X68*X69)/(X68+X69)) -> 
U74: Temperature difference | W74: W | AE74: City | AF74: Degree Days 65 F | AH74: Combo Box List | AI74: Combo Box Value | AJ74: Value on the main sheet
U75: Winter | V75: Summer | W75: Winter | X75: Summer | AF75: Heating | AG75: Cooling | AH75: Choose nearest city | AJ75: Heating | AK75: Cooling
T76: Design | U76: 68 | V76: 75 | W76: =30*0.000143 -> 0.00429 | X76: =78*0.000143 -> 0.011154 | AE76: Columbia | AF76: 5078 | AG76: 1269 | AH76: Columbia | AI76: 1 | AJ76: =IF(AI76=1,"",INDEX(AF76:AF80,AI76-1,1)) ->  | AK76: =IF(AI76=1,"",INDEX(AG76:AG80,AI76-1,1)) -> 
T77: Missouri | U77: 7.4 | V77: 91.4 | W77: 0.0011306 | X77: =129.8*0.000143 -> 0.0185614 | AE77: Kansas City | AF77: 5161 | AG77: 1421 | AH77: Kansas City
AE78: St. Louis | AF78: 4750 | AG78: 1475 | AH78: St. Louis
AE79: St. Joseph | AF79: 5435 | AG79: 1334 | AH79: St. Joeseph
T80: MMBtu Conversion | AE80: Springfield | AF80: 4570 | AG80: 1382 | AH80: Springfield
T81: 1 | U81: MMBtu | V81: > | W81: 293.2972222 | X81: kWh
B82: ADDITIONAL INSTRUCTIONS
C84: Item 21. The efficiency can be from the nameplate data including (but not limited to) AFUE, COP, percentage from btu out/btu in, percentage ratio of efficiency. For example, if the percentage ratio efficiency is 80%, please enter 80. If the COP of the cooling plant efficiency is 2.5, please enter 250%. | T84: CD | U84: 0.77
AJ85: Summer | AL85: Winter | AN85: cost summer | AO85: cost winter
AH86: Select the energy consumption type | AI86: 1 | AJ86: ="" ->  | AK86: ="" ->  | AL86: ="" ->  | AM86: ="" ->  | AN86: ="" ->  | AO86: ="" -> 
AH87: Fuel heating / Electric cooling | AI87: 2 | AJ87: =IFERROR(IF(N54="",J54-P54,IF(P54="",J54-N54,(J54-N54-P54)))*W81,"") ->  | AK87: kWh | AL87: =IFERROR(IF(P60="",J60-N60,(IF(N60="",J60-P60,J60-N60-P60))),"") ->  | AM87: MMBtu | AN87: =IFERROR(AJ87*O32,"") ->  | AO87: =IFERROR(AL87*O31,"") -> 
C88: If your SEER for cooling equipment is unknown, please use the estimated formula in the table to estimate your SEER rating. Based on a study published by Oak Ridge National Laboratory, the cooling efficiencies in SEER can be estimated by the manufactured date. | AH88: Electric heating / Electric cooling | AI88: 3 | AJ88: =IFERROR((IF(N54="",J54-P54,IF(P54="",J54-N54,(J54-N54-P54))))*W81,"") ->  | AK88: kWh | AL88: =IFERROR(IF(P60="",J60-N60,(IF(N60="",J60-P60,J60-N60-P60)))*W81,"") ->  | AM88: kWh | AN88: =IFERROR(AJ88*O32,"") ->  | AO88: =IFERROR(AL88*O32,"") -> 
AH89: Fuel heating only | AI89: 4 | AJ89: ="" ->  | AK89: ="" ->  | AL89: =IFERROR(IF(P60="",J60-N60,(IF(N60="",J60-P60,J60-N60-P60))),"") ->  | AM89: MMBtu | AO89: =IFERROR(AL89*O31,"") -> 
AH90: Electric heating only | AI90: 5 | AJ90: ="" ->  | AK90: ="" ->  | AL90: =IFERROR(IF(P60="",J60-N60,(IF(N60="",J60-P60,J60-N60-P60)))*W81,"") ->  | AM90: kWh | AO90: =IFERROR(AL90*O32,"") -> 
D92: Central Air Conditioner or Heat Pump Cooling Efficiency (SEER)
D93: 1970 and earlier | F93: SEER = 6.0
D94: 1971 - 1996 | F94: SEER = 9.5 + 0.1786 x (year manufactured - 1990)
D95: 1997 - 2002 | F95: SEER = 10.75 + 0.0750 x (year manufactured - 1997)
D96: 2003 - 2007 | F96: SEER = 11.2 + 0.3600 x (year manufactured - 2003)
D97: 2008 and later | F97: SEER = 13.0
D99: Reference: Oak Ridge National Laboratory, September 7, 2007
B101: COP CONVERSION TABLE
D103: Conversion Formula
D104: COP = SEER x 0.293 = EER / 3.142
B118: =Instructions!$B$79 -> MO 780-3070 (12-24)

Sheet Dishwasher - Energy Star (hidden)
B4: BUILDING | H4: LOCATION | M4: DATE
B6: INSTRUCTIONS
C8: This sheet is for a dishwasher upgrade from a conventional model to an ENERGY STAR® model. To estimate the savings of dishwasher replacement, the following information must be known:
W9: Type of dishwasher selected from the worksheet | AA9: Building Water | AB9: Booster Water
C10: Type of dishwasher. | I10: Average daily operations (hours). | W10: =R24 -> 1 | X10: =INDEX('Dishwasher Calcs'!L6:L15,W10,1) -> List of dishwasher | AA10: =C28 -> 0 | AB10: =G28 -> 0
C11: Number of racks washed per day. | I11: Quantity of dishwashers.
C12: Operating days per year. | I12: The electricity energy cost ($/kWh). | W12: Gallons of water consumed (Gallons)
C13: Building hot water and booster heater fuel type. | I13: The natural gas energy cost ($/MMBtu). | W13: Conventional | Y13: Energy Star
W14: =IF(W10<6,INDEX('Dishwasher Calcs'!F27:F30,W10-1,1),IF(W10>=6,INDEX('Dishwasher Calcs'!F32:F36,W10-5,1),"")) ->  | Y14: =IF(W10<6,INDEX('Dishwasher Calcs'!G27:G30,W10-1,1),IF(W10>=6,INDEX('Dishwasher Calcs'!G32:G36,W10-5,1),"")) -> 
B15: Please Note:
C16: If the project involves several dishwashers, please submit one sheet for each characteristic of use (i.e. different number of loads, operating days). | W16: Idle Power Draw (kW)
C17: This worksheet is applicable for commercial-grade dishwashers with standard commercial rack size only. This worksheet is not applicable to residential units. | W17: Conventional | Y17: Energy Star
C18: High temperature dishwasher is with a booster. Low temperature dishwasher is without a booster. | W18: =IF($W$10<6,INDEX('Dishwasher Calcs'!H27:H30,$W$10-1,1),IF($W$10>=6,INDEX('Dishwasher Calcs'!H32:H36,$W$10-5,1),"")) ->  | Y18: =IF($W$10<6,INDEX('Dishwasher Calcs'!I27:I30,$W$10-1,1),IF($W$10>=6,INDEX('Dishwasher Calcs'!I32:I36,$W$10-5,1),"")) -> 
B20: ATTENTION
B21: **The Department reserves the right to determine if the worksheet is appopriate for the project and may request additional information. An Energy Conservation Measure (ECM) has the potential of affecting other areas within your facility or system.**
B22: DISHWASHER HOT WATER SAVINGS CALCULATION | W22: Typical Wash Time (Minutes)
W23: Conventional | Y23: Energy Star
C24: 1. Select type of Dishwasher | J24: 2. Racks washed per day | M24: 3. Operating days per year | R24: 1 | S24: Natural Gas | T24: =IF(R24<6,"N/A","Natural Gas") -> N/A | W24: =IF($W$10<6,INDEX('Dishwasher Calcs'!D27:D30,$W$10-1,1),IF($W$10>=6,INDEX('Dishwasher Calcs'!D32:D36,$W$10-5,1),"")) ->  | Y24: =IF($W$10<6,INDEX('Dishwasher Calcs'!E27:E30,$W$10-1,1),IF($W$10>=6,INDEX('Dishwasher Calcs'!E32:E36,$W$10-5,1),"")) -> 
S25: Electric | T25: =IF(R24<6,"","Electric") -> 
C27: 4. Building hot water fuel type | G27: 5. Booster water heater fuel type | J27: 6. Average Daily Operation (hours) | M27: 7. Number of Dishwashers | W27: Consumption of water from the worksheet (Gallons)
W28: Conventional | Y28: Energy Star
W29: =W14*J25*M25 ->  | Y29: =Y14*J25*M25 -> 
C30: 8. Electric rate ($/kWh) | G30: 9. Gas rate ($/MMBtu)
C31: =IFERROR(VLOOKUP(B5,'Fuel Use Summary (Consolidate)'!B4:D13,2,0),0) -> 0 | G31: =IFERROR(VLOOKUP(B5,'Fuel Use Summary (Consolidate)'!B4:D13,3,0),0) -> 0
W32: Annual Building Water Heater Energy Consumption | AA32: Annual Booster Heater Energy Consumption | AE32: Annual Idle Electricity Consumption (kWh)
B33: ANNUAL SAVINGS | W33: Conventional | Y33: ENERGY STAR | AA33: Conventional | AC33: ENERGY STAR
W34: Electric (kWh) | X34: Gas (MMBtu) | Y34: Electric (kWh) | Z34: Gas (MMBtu) | AA34: Electric (kWh) | AB34: Gas (MMBtu) | AC34: Electric (kWh) | AD34: Gas (MMBtu) | AE34: Conventional | AF34: ENERGY STAR
E35: Savings | W35: =IF(AA10="Electric",W29*'Dishwasher Calcs'!C40,0) -> 0 | X35: =IF(AA10="Natural Gas",W29*'Dishwasher Calcs'!E40,0) -> 0 | Y35: =IF(AA10="Electric",Y29*'Dishwasher Calcs'!C40,0) -> 0 | Z35: =IF(AA10="Natural Gas",Y29*'Dishwasher Calcs'!E40,0) -> 0 | AA35: =IF(AB10="Electric",W29*'Dishwasher Calcs'!C41,0) -> 0 | AB35: =IF(AB10="Natural Gas",W29*'Dishwasher Calcs'!E41,0) -> 0 | AC35: =IF(AB10="Electric",Y29*'Dishwasher Calcs'!C41,0) -> 0 | AD35: =IF(AB10="Natural Gas",Y29*'Dishwasher Calcs'!E41,0) -> 0 | AE35: =W18*(M25*J28-M25*J25*W24/60) ->  | AF35: =Y18*(M25*J28-M25*J25*Y24/60) -> 
E36: Electricity (kWh) | G36: Natural Gas (MMBtu) | I36: Annual Cost Savings
E37: =IFERROR(T45,0) -> 0 | G37: =IFERROR(U45,0) -> 0 | I37: =IFERROR(V45,0) -> 0
C39: Assumption:
C40: 1 | D40: Water heater efficiency ratings are 98% for electric and 80% for natural gas.
C41: 2 | D41: The inlet water temperature increase for the building water heater is at 70 oF.
C42: 3 | D42: The inlet water temperature increase for the booster water heater is at 40 oF. | T42: DED Worksheet calculation
C43: Reference: http://www.energystar.gov/certified-products/detail/commercial_dishwashers | T43: Savings
T44: Electricity (kWh) | U44: Gas (MMBtu) | V44: Total Savings
B45: PROJECT COST | T45: =M28*((W35-Y35)+(AA35-AC35)+(AE35-AF35)) ->  | U45: =M28*((X35-Z35)+(AB35-AD35)) -> 0 | V45: =C31*T45+G31*U45 -> 
C47: 10. Enter the total cost of the proposed project including material, labor, and design | L47: 0
B49: SIMPLE PAYBACK
C51: 11. Estimated simple payback period | K51: =IF(ISERROR(+L47/#REF!),"",(+L47/#REF!)) ->  | L51: =IFERROR(L47/I37,0) -> 0
B55: DESCRIPTION PAGE
B56: Dishwasher - Energy Star Energy® Conservation Measure
B57: Describe the existing system and the proposed energy conservation measure (use additional sheets if necessary):
B103: =Instructions!$B$79 -> MO 780-3070 (12-24)

Sheet Pipe Insulation-Gas (hidden)
B4: BUILDING | H4: LOCATION | M4: DATE
B6: INSTRUCTIONS
C7: To estimate the savings of adding insulation to the outside of heat distribution pipes, the following information must be known:
C8: The interior pipe diameter. | J8: Bare pipe heat loss factor (use Heat Loss Factor Table).
C9: The total length (feet) of pipe to be insulated. | J9: Thickness of added insulation.
C10: The pipe fluid temperature (°F). | J10: Insulated pipe heat loss factor (use Heat Loss Factor Table).
C11: The pipe room temperature (°F). | J11: Heating plant efficiency (in percent).
C12: The hours of use per day. | J12: The energy cost ($/MMBtu).
C14: Please Note:
C15: To use this worksheet, the heating and cooling distribution pipe must be at a constant temperature. The pipe distribution must be indoors.
C16: If the project involves several buildings, please submit one worksheet per building.
C17: If more than one pipe condition is used in summer and winter, please submit one worksheet per season.
C18: Item 5. Please enter interior temperature or the thermostat setpoint.
C19: Item 10. The efficiency can be from the boiler nameplate data including (but not limited to) AFUE percentage,
C20: percentage from btu out/btu in or percentage ratio of efficiency. For example, if the percentage ratio efficiency is 80%, please enter 80.
B22: ATTENTION
B23: **The Department reserves the right to determine if the worksheet is appropriate for the project and may request additional information. An Energy Conservation Measure (ECM) has the potential of affecting other areas within your facility or system.**
B24: SAVINGS CALCULATIONS
C26: 1 | D26: Enter the bare pipe heat loss factor (use Heat Loss Factor Table)
C28: 2 | D28: Enter the insulated pipe heat loss factor (use Heat Loss Factor Table)
C30: 3 | D30: Subtract line 2 from line 1 | L30: =IF(L28>0,L26-L28,"") -> 
C32: 4 | D32: Enter the pipe fluid temperature (°F) | O32: °F
C34: 5 | D34: Enter the pipe room temperature (°F) | O34: °F
C36: 6 | D36: Subtract line 5 from line 4 | L36: =IF(L34>0,L32-L34,"") ->  | O36: °F
C38: 7 | D38: Enter the total length (feet) of pipe to be insulated | O38: Feet
C40: 8 | D40: Enter the hours of use per year | O40: Hours
C42: 9 | D42: Multiply line 3 by line 6 by line 7 by line 8 then divide by 1,000,000 | L42: =IFERROR(L30*L36*L38*L40/1000000,"") ->  | O42: MMBtu
C44: 10 | D44: Enter the heating plant efficiency (percentage) | O44: Percent
C46: 11 | D46: Divide line 9 by line 10 and multiply by 100 | L46: =IFERROR(L42/L44,"") ->  | O46: MMBtu
C48: 12 | D48: Enter the energy cost ($/million Btu) | L48: =IFERROR(VLOOKUP(B5,'Fuel Use Summary (Consolidate)'!B4:D13,3,0),"") ->  | O48: /MMBtu
B50: ANNUAL SAVINGS
C52: 13 | D52: Multiply line 11 by line 12 | L52: =IFERROR(L46*L48,0) -> 0 | O52: /Year
B54: PROJECT COST
C56: 14 | D56: Enter the total cost to insulate the pipe including material, labor and design | L56: 0
B58: SIMPLE PAYBACK
C60: 15 | D60: Divide line 14 by line 13 | L60: =IFERROR(L56/L52,"") ->  | O60: Years
B63: DESCRIPTION PAGE
B64: Pipe Insulation Energy Conservation Measure - Natural Gas
B65: Describe the existing system and the proposed energy conservation measure (use additional sheets if necessary):
B97: Heat Loss Factor Table
C99: INTERIOR PIPE DIAMETER | F99: BARE PIPE FACTOR | H99: INSULATED PIPE FACTOR
H100: INSULATION THICKNESS (INCHES)
H101: ½ | I101: ¾ | J101: 1 | K101: 1 ¼ | L101: 1 ½ | M101: 1 ¾ | N101: 2
C102: ½ | F102: 0.63 | H102: 0.163 | I102: 0.135 | J102: 0.116 | K102: 0.105 | L102: 0.098 | M102: 0.091 | N102: 0.086
C103: ¾ | F103: 0.76 | H103: 0.191 | I103: 0.155 | J103: 0.135 | K103: 0.12 | L103: 0.11 | M103: 0.103 | N103: 0.096
C104: 1 | F104: 0.93 | H104: 0.211 | I104: 0.179 | J104: 0.153 | K104: 0.136 | L104: 0.125 | M104: 0.115 | N104: 0.108
C105: 1 ¼ | F105: 1.14 | H105: 0.263 | I105: 0.21 | J105: 0.178 | K105: 0.158 | L105: 0.143 | M105: 0.132 | N105: 0.122
C106: 1 ½ | F106: 1.27 | H106: 0.287 | I106: 0.232 | J106: 0.194 | K106: 0.172 | L106: 0.154 | M106: 0.142 | N106: 0.132
C107: 2 | F107: 1.53 | H107: 0.345 | I107: 0.271 | J107: 0.229 | K107: 0.198 | L107: 0.178 | M107: 0.163 | N107: 0.151
C108: 2 ¼ | F108: 1.87 | H108: 0.425 | I108: 0.325 | J108: 0.27 | K108: 0.237 | L108: 0.21 | M108: 0.19 | N108: 0.175
C109: 3 | F109: 2.15 | H109: 0.487 | I109: 0.368 | J109: 0.309 | K109: 0.251 | L109: 0.214 | M109: 0.211 | N109: 0.195
C110: 4 | F110: 2.65 | H110: 0.6 | I110: 0.447 | J110: 0.375 | K110: 0.305 | L110: 0.279 | M110: 0.252 | N110: 0.231
C111: 5 | F111: 3.2 | H111: 0.663 | I111: 0.5 | J111: 0.407 | K111: 0.346 | L111: 0.305 | M111: 0.271 | N111: 0.245
C112: 6 | F112: 3.7 | H112: 0.852 | I112: 0.628 | J112: 0.536 | K112: 0.432 | L112: 0.379 | M112: 0.341 | N112: 0.305
C113: 8 | F113: 4.75 | H113: 1.09 | I113: 0.828 | J113: 0.65 | K113: 0.549 | L113: 0.486 | M113: 0.433 | N113: 0.388
C114: 10 | F114: 5.75 | H114: 1.341 | I114: 0.99 | J114: 0.778 | K114: 0.678 | L114: 0.58 | M114: 0.511 | N114: 0.457
C115: 12 | F115: 6.75 | H115: 1.55 | I115: 1.152 | J115: 0.92 | K115: 0.802 | L115: 0.664 | M115: 0.604 | N115: 0.541
B121: =Instructions!$B$79 -> MO 780-3070 (12-24)

Sheet Pipe Insulation-Electric (hidden)
B4: BUILDING | H4: LOCATION | M4: DATE
B6: INSTRUCTIONS
C7: To estimate the savings of adding insulation to the outside of heat distribution pipes, the following information must be known:
C8: The interior pipe diameter. | J8: Bare pipe heat loss factor (use Heat Loss Factor Table).
C9: The total length (feet) of pipe to be insulated. | J9: Thickness of added insulation.
C10: The pipe fluid temperature (°F). | J10: Insulated pipe heat loss factor (use Heat Loss Factor Table).
C11: The pipe room temperature (°F). | J11: Heating plant efficiency (in percent).
C12: The hours of use per day. | J12: The energy cost ($/kWh).
C14: Please Note:
C15: To use this worksheet, the heating and cooling distribution pipe must be at a constant temperature. The pipe distribution must be indoors.
C16: If the project involves several buildings, please submit one worksheet per building.
C17: If more than one pipe condition is used in summer and winter, please submit one worksheet per season.
C18: Item 5. Please enter interior temperature or the thermostat setpoint.
C19: Item 10. If the rating is SEER or EER, use the conversion table below (Page 2).
B21: ATTENTION
B22: **The Department reserves the right to determine if the worksheet is appropriate for the project and may request additional information. An Energy Conservation Measure (ECM) has the potential of affecting other areas within your facility or system.**
B23: SAVINGS CALCULATIONS
C25: 1 | D25: Enter the bare pipe heat loss factor (use Heat Loss Factor Table)
C27: 2 | D27: Enter the insulated pipe heat loss factor (use Heat Loss Factor Table)
C29: 3 | D29: Subtract line 2 from line 1 | L29: =IF(L27>0,L25-L27,"") -> 
C31: 4 | D31: Enter the pipe fluid temperature (°F) | O31: °F
C33: 5 | D33: Enter the pipe room temperature (°F) | O33: °F
C35: 6 | D35: Subtract line 5 from line 4 | L35: =IF(L33>0,L31-L33,"") ->  | O35: °F
C37: 7 | D37: Enter the total length (feet) of pipe to be insulated | O37: Feet
C39: 8 | D39: Enter the hours of use per year | O39: Hours
C41: 9 | D41: Multiply line 3 by line 6 by line 7 by line 8 then divide by 3,412 | L41: =IFERROR((L29*L35*L37*L39/3412),"") ->  | O41: kWh
C43: 10 | D43: Enter COP of the cooling plant
D44: If the rating is SEER or EER, use the conversion table below (Page 2).
C46: 11 | D46: Divide line 9 by line 10 and multiply by 100 | L46: =IFERROR(L41/L43,"") ->  | O46: kWh
C48: 12 | D48: Enter the energy cost ($/kWh) | L48: =IFERROR(VLOOKUP(B5,'Fuel Use Summary (Consolidate)'!B4:D13,2,0),"") ->  | O48: /kWh
B50: ANNUAL SAVINGS
C52: 13 | D52: Multiply line 11 by line 12 | L52: =IFERROR(L46*L48,0) -> 0 | O52: /Year
B54: PROJECT COST
C56: 14 | D56: Enter the total cost to insulate the pipe including material, labor and design | L56: 0
B58: SIMPLE PAYBACK
C60: 15 | D60: Divide line 14 by line 13 | L60: =IFERROR(L56/L52,"") ->  | O60: Years
B63: DESCRIPTION PAGE
B64: Pipe Insulation Energy Conservation Measure - Electric
B65: Describe the existing system and the proposed energy conservation measure (use additional sheets if necessary):
B79: SEER RATING TABLE
C80: If your SEER for cooling equipment is unknown, please use the estimated formula in the table to estimate your SEER rating. Based on a study published by Oak Ridge National Laboratory, the cooling efficiencies in SEER can be estimated by the manufactured date.
D83: Central Air Conditioner or Heat Pump Cooling Efficiency (SEER)
D84: 1970 and earlier | F84: SEER = 6.0
D85: 1971 - 1996 | F85: SEER = 9.5 + 0.1786 x (year manufactured - 1990)
D86: 1997 - 2002 | F86: SEER = 10.75 + 0.0750 x (year manufactured - 1997)
D87: 2003 - 2007 | F87: SEER = 11.2 + 0.3600 x (year manufactured - 2003)
D88: 2008 and later | F88: SEER = 13.0
D90: Reference: Oak Ridge National Laboratory, September 7, 2007
B92: COP CONVERSION TABLE
D94: Conversion Formula
D95: COP = SEER x 0.293 = EER / 3.142
B97: HEAT LOSS FACTOR TABLE
C99: INTERIOR PIPE DIAMETER | F99: BARE PIPE FACTOR | H99: INSULATED PIPE FACTOR
H100: INSULATION THICKNESS (INCHES)
H101: ½ | I101: ¾ | J101: 1 | K101: 1 ¼ | L101: 1 ½ | M101: 1 ¾ | N101: 2
C102: ½ | F102: 0.63 | H102: 0.163 | I102: 0.135 | J102: 0.116 | K102: 0.105 | L102: 0.098 | M102: 0.091 | N102: 0.086
C103: ¾ | F103: 0.76 | H103: 0.191 | I103: 0.155 | J103: 0.135 | K103: 0.12 | L103: 0.11 | M103: 0.103 | N103: 0.096
C104: 1 | F104: 0.93 | H104: 0.211 | I104: 0.179 | J104: 0.153 | K104: 0.136 | L104: 0.125 | M104: 0.115 | N104: 0.108
C105: 1 ¼ | F105: 1.14 | H105: 0.263 | I105: 0.21 | J105: 0.178 | K105: 0.158 | L105: 0.143 | M105: 0.132 | N105: 0.122
C106: 1 ½ | F106: 1.27 | H106: 0.287 | I106: 0.232 | J106: 0.194 | K106: 0.172 | L106: 0.154 | M106: 0.142 | N106: 0.132
C107: 2 | F107: 1.53 | H107: 0.345 | I107: 0.271 | J107: 0.229 | K107: 0.198 | L107: 0.178 | M107: 0.163 | N107: 0.151
C108: 2 ¼ | F108: 1.87 | H108: 0.425 | I108: 0.325 | J108: 0.27 | K108: 0.237 | L108: 0.21 | M108: 0.19 | N108: 0.175
C109: 3 | F109: 2.15 | H109: 0.487 | I109: 0.368 | J109: 0.309 | K109: 0.251 | L109: 0.214 | M109: 0.211 | N109: 0.195
C110: 4 | F110: 2.65 | H110: 0.6 | I110: 0.447 | J110: 0.375 | K110: 0.305 | L110: 0.279 | M110: 0.252 | N110: 0.231
C111: 5 | F111: 3.2 | H111: 0.663 | I111: 0.5 | J111: 0.407 | K111: 0.346 | L111: 0.305 | M111: 0.271 | N111: 0.245
C112: 6 | F112: 3.7 | H112: 0.852 | I112: 0.628 | J112: 0.536 | K112: 0.432 | L112: 0.379 | M112: 0.341 | N112: 0.305
C113: 8 | F113: 4.75 | H113: 1.09 | I113: 0.828 | J113: 0.65 | K113: 0.549 | L113: 0.486 | M113: 0.433 | N113: 0.388
C114: 10 | F114: 5.75 | H114: 1.341 | I114: 0.99 | J114: 0.778 | K114: 0.678 | L114: 0.58 | M114: 0.511 | N114: 0.457
C115: 12 | F115: 6.75 | H115: 1.55 | I115: 1.152 | J115: 0.92 | K115: 0.802 | L115: 0.664 | M115: 0.604 | N115: 0.541
B124: =Instructions!$B$79 -> MO 780-3070 (12-24)

Sheet Dishwasher Calcs (hidden)
A1: Reference: http://www.energystar.gov/certified-products/detail/commercial_dishwashers
A2: Dishwasher Calculations for the ENERGY STAR Commercial Kitchen Equipment Calculator
A3: Inputs - to edit these values go to the INPUTS tab
C4: DEFAULT | F4: USER ENTRY
C5: Annual days of operation | D5: Racks washed per day | E5: Incremental cost | F5: Annual days of operation | G5: Racks washed per day | H5: Incremental cost | I5: Building hot water fuel type | J5: Booster water heater fuel type | L5: List of dishwasher
B6: Low Temperature | L6: List of dishwasher
B7: Under Counter | C7: 365 | D7: 75 | E7: 50 | F7: 365 | G7: 75 | H7: 50 | J7: N/A | L7: =$B$6&" - "&B7 -> Low Temperature - Under Counter
B8: Stationary Single Tank Door | C8: 365 | D8: 280 | E8: 0 | F8: 365 | G8: 280 | H8: 0 | L8: =$B$6&" - "&B8 -> Low Temperature - Stationary Single Tank Door
B9: Single Tank Conveyor | C9: 365 | D9: 400 | E9: 0 | F9: 365 | G9: 400 | H9: 0 | L9: =$B$6&" - "&B9 -> Low Temperature - Single Tank Conveyor
B10: Multi Tank Conveyor | C10: 365 | D10: 600 | E10: 970 | F10: 365 | G10: 600 | H10: 970 | L10: =$B$6&" - "&B10 -> Low Temperature - Multi Tank Conveyor
B11: High Temperature | L11: =$B$11&" - "&B12 -> High Temperature - Under Counter
B12: Under Counter | C12: 365 | D12: 75 | E12: 120 | F12: 365 | G12: 75 | H12: 120 | L12: =$B$11&" - "&B13 -> High Temperature - Stationary Single Tank Door
B13: Stationary Single Tank Door | C13: 365 | D13: 280 | E13: 770 | F13: 365 | G13: 280 | H13: 770 | L13: =$B$11&" - "&B14 -> High Temperature - Single Tank Conveyor
B14: Single Tank Conveyor | C14: 365 | D14: 400 | E14: 2050 | F14: 365 | G14: 400 | H14: 2050 | L14: =$B$11&" - "&B15 -> High Temperature - Multi Tank Conveyor
B15: Multi Tank Conveyor | C15: 365 | D15: 600 | E15: 970 | F15: 365 | G15: 600 | H15: 970 | L15: =$B$11&" - "&B16 -> High Temperature - Pot, Pan, and Utensil
B16: Pot, Pan, and Utensil | C16: 365 | D16: 280 | E16: 1710 | F16: 365 | G16: 280 | H16: 1710
A17: Assumptions - users can edit the highlighted values to modify the assumptions
C18: Water Heater Efficiency | E18: Inlet Water Temperature Increase (oF)
G19: Specific Heat of Water | I19: 1 | J19: Btu/pound/oF
C20: Electric | D20: Gas | G20: Density of Water | I20: =61.4/7.48 -> 8.20855615 | J20: pounds/gallon
B21: Building Water Heater | C21: 0.98 | D21: 0.8 | E21: 70
B22: Booster Water Heater | C22: 0.98 | D22: 0.8 | E22: 40
C24: Average daily operation (hours) | D24: Typical Wash Time (minutes) | F24: Water Use per Rack (gallons) | H24: Idle Power Draw (kW) | J24: Equipment lifetime (years)
D25: Conventional | E25: ENERGY STAR | F25: Conventional | G25: ENERGY STAR | H25: Conventional | I25: ENERGY STAR
B26: Low Temperature
B27: Under Counter | C27: 18 | D27: 2 | E27: 2 | F27: 1.73 | G27: 1.19 | H27: 0.5 | I27: 0.5 | J27: 10
B28: Stationary Single Tank Door | C28: 18 | D28: 1.5 | E28: 1.5 | F28: 2.1 | G28: 1.18 | H28: 0.6 | I28: 0.6 | J28: 15
B29: Single Tank Conveyor | C29: 18 | D29: 0.3 | E29: 0.3 | F29: 1.31 | G29: 0.79 | H29: 1.6 | I29: 1.5 | J29: 20
B30: Multi Tank Conveyor | C30: 18 | D30: 0.3 | E30: 0.3 | F30: 1.04 | G30: 0.54 | H30: 2 | I30: 2 | J30: 20
B31: High Temperature
B32: Under Counter | C32: 18 | D32: 2 | E32: 2 | F32: 1.09 | G32: 0.86 | H32: 0.76 | I32: 0.5 | J32: 10
B33: Stationary Single Tank Door | C33: 18 | D33: 1 | E33: 1 | F33: 1.29 | G33: 0.89 | H33: 0.87 | I33: 0.7 | J33: 15
B34: Single Tank Conveyor | C34: 18 | D34: 0.3 | E34: 0.3 | F34: 0.87 | G34: 0.7 | H34: 1.93 | I34: 1.5 | J34: 20
B35: Multi Tank Conveyor | C35: 18 | D35: 0.2 | E35: 0.2 | F35: 0.97 | G35: 0.54 | H35: 2.59 | I35: 2.25 | J35: 20
B36: Pot, Pan, and Utensil | C36: 18 | D36: 3 | E36: 3 | F36: 0.7 | G36: 0.58 | H36: 1.2 | I36: 1.2 | J36: 10
A37: Calculations
B38: Water Heating Energy | C38: Electric | D38: Gas | E38: Gas
C39: kWh/gallon | D39: therm/gallon | E39: MMBtu/Gallon
B40: Building Water Heater | C40: =E21*I19*I20/C21/3412 -> 0.1718421569 | D40: =E21*I19*I20/D21/100000 -> 0.007182486631 | E40: =E21*I19*I20/D21/1000000 -> 0.0007182486631
B41: Booster Water Heater | C41: =E22*I19*I20/C22/3412 -> 0.09819551822 | D41: =E22*I19*I20/D22/100000 -> 0.004104278075 | E41: =E22*I19*I20/D22/1000000 -> 0.0004104278075
C43: Annual Water Consumption (gallons)
C44: Conventional | D44: ENERGY STAR | E44: Savings
B45: Low Temperature
B46: Under Counter | C46: =F27*G7*F7 -> 47358.75 | D46: =G27*G7*F7 -> 32576.25 | E46: =C46-D46 -> 14782.5
B47: Stationary Single Tank Door | C47: =F28*G8*F8 -> 214620 | D47: =G28*G8*F8 -> 120596 | E47: =C47-D47 -> 94024
B48: Single Tank Conveyor | C48: =F29*G9*F9 -> 191260 | D48: =G29*G9*F9 -> 115340 | E48: =C48-D48 -> 75920
B49: Multi Tank Conveyor | C49: =F30*G10*F10 -> 227760 | D49: =G30*G10*F10 -> 118260 | E49: =C49-D49 -> 109500
B50: High Temperature
B51: Under Counter | C51: =F32*G12*F12 -> 29838.75 | D51: =G32*G12*F12 -> 23542.5 | E51: =C51-D51 -> 6296.25
B52: Stationary Single Tank Door | C52: =F33*G13*F13 -> 131838 | D52: =G33*G13*F13 -> 90958 | E52: =C52-D52 -> 40880
B53: Single Tank Conveyor | C53: =F34*G14*F14 -> 127020 | D53: =G34*G14*F14 -> 102200 | E53: =C53-D53 -> 24820
B54: Multi Tank Conveyor | C54: =F35*G15*F15 -> 212430 | D54: =G35*G15*F15 -> 118260 | E54: =C54-D54 -> 94170
B55: Pot, Pan, and Utensil | C55: =F36*G16*F16 -> 71540 | D55: =G36*G16*F16 -> 59276 | E55: =C55-D55 -> 12264
A58: References
B59: Equipment specifications: | C59: - ENERGY STAR specification
C60: - EPA/Food Service Technology Center (FSTC) research on available models, 2013
B61: Operating hours: | C61: - EPA/FSTC research on average use, 2009
B62: Incremental equipment cost: | C62: - Difference between a similar ENERGY STAR and non-qualifying model, EPA research using AutoQuotes, 2012
B63: Equipment lifetime: | C63: - EPA/FSTC research on available models, 2013
B64: Water heater specifications: | C64: - Federal standard: Title 10 Part 431 - Energy Efficiency Program for Certain Commercial and Industrial Equipment; Subpart G
B65: Water properties: | C65: - Cengel & Turner, Fundamentals of Thermal Fluid Science, Table A-15E
B70: do not modify - quantity: | C70: =[1]INPUTS!E13 -> 0 | D70: =[1]INPUTS!E14 -> 0 | E70: =[1]INPUTS!E15 -> 0 | F70: =[1]INPUTS!E16 -> 0 | G70: =[1]INPUTS!E17 -> 0 | H70: =[1]INPUTS!E18 -> 0 | I70: =[1]INPUTS!E19 -> 0 | J70: =[1]INPUTS!E20 -> 0 | K70: =[1]INPUTS!E21 -> 0
C71: =SUM(C70:F70) -> 0

Sheet Dishwasher - Other (hidden)
B4: BUILDING | H4: LOCATION | M4: DATE
B6: INSTRUCTIONS
C7: To estimate the savings of dishwasher replacement, the following information must be known:
C8: Incoming water temperature (degrees F). | I8: The electricity energy cost ($/kWh).
C9: Final water temperature (degrees F). | I9: The natural gas energy cost ($/therm).
C10: Amount of water saved (gallon).
C11: Please Note:
C12: If the project involves several dishwashers, please submit one sheet for each. | W12: Idle Power Draw (kW)
C13: This worksheet is applicable for commercial-grade dishwashers with standard commercial rack size only. This worksheet is not applicable to residential units. | W13: Conventional | Y13: Energy Star
C14: High temperature dishwasher is with a booster. Low temperature dishwasher is without a booster. | W14: =IF($W$10<6,INDEX('Dishwasher Calcs'!H23:H26,$W$10-1,1),IF($W$10>=6,INDEX('Dishwasher Calcs'!H28:H32,$W$10-5,1),"")) ->  | Y14: =IF($W$10<6,INDEX('Dishwasher Calcs'!I23:I26,$W$10-1,1),IF($W$10>=6,INDEX('Dishwasher Calcs'!I28:I32,$W$10-5,1),"")) -> 
B15: ATTENTION
B16: **The Department reserves the right to determine if the worksheet is appropriate for the project and may request additional information. An Energy Conservation Measure (ECM) has the potential of affecting other areas within your facility or system.**
B17: DISHWASHER HOT WATER SAVINGS CALCULATION
B19: STAGE 1
B20: Incoming water temperature (degrees F) | L20: °F
B22: Final water temperature (degrees F) | L22: °F
B24: Amount of water saved (gal.) | L24: Gal. | Q24: Water Heater Efficiency
Q25: Natural Gas
B26: Water heater efficiency | J26: =IF(R26=1,0.8,0.98) -> 0.98 | Q26: Electricity | R26: 2
B27: (assume 0.80 for gas & 0.98 for electricity)
B29: Stage 1 Energy use (MMBTUs) | H29: =+((J22-J20)*(J24*8.33))/(J26*1000000) -> 0
B31: =IF(R26=2,"Enter cost of electricity ($/kWh) -","Enter cost of Natural Gas ($/MMBtu) -") -> Enter cost of electricity ($/kWh) - | J31: =IFERROR(IF(R26=2,VLOOKUP(B5,'Fuel Use Summary (Consolidate)'!B4:D13,2,0),VLOOKUP(B5,'Fuel Use Summary (Consolidate)'!B4:D13,3,0)),"") ->  | L31: =IF(R26=2,"$/kWh","$/MMBtu") -> $/kWh
B33: Energy cost per MMBtu | J33: =IFERROR(IF(R26=2,J31*293,J31),"") ->  | L33: $/MMBtu
B35: Stage 1 Savings ($) | H35: =IFERROR((H29*J33),0) -> 0
B38: STAGE 2
B39: Incoming water temperature (degrees F) | L39: °F
B41: Final water temperature (degrees F) | L41: °F
B43: Amount of water saved (gal.) | L43: Gal.
B45: Water heater efficiency | J45: =IF(R52=1,0.8,0.98) -> 0.8
B46: (assume 0.80 for gas & 0.98 for electricity)
B48: Stage 2 Energy use (MMBTUs) | H48: =+((J41-J39)*(J43*8.33))/(J45*1000000) -> 0
B50: =IF(R52=2,"Enter cost of electricity ($/kWh) -","Enter cost of natural gas ($/MMBtu) -") -> Enter cost of natural gas ($/MMBtu) - | J50: =IFERROR(IF(R52=2,VLOOKUP(B5,'Fuel Use Summary (Consolidate)'!B4:D13,2,0),VLOOKUP(B5,'Fuel Use Summary (Consolidate)'!B4:D13,3,0)),"") ->  | L50: =IF(R52=2,"$/kWh","$/MMBtu") -> $/MMBtu | Q50: Water Heater Efficiency
Q51: Natural Gas
B52: Energy cost per MMBtu | J52: =IFERROR(IF(R52=2,J50*293,J50),"") ->  | L52: $/MMBtu | Q52: Electricity | R52: 1
B54: Stage 2 Savings ($) | H54: =IFERROR(H48*J52,0) -> 0
B56: ANNUAL SAVINGS
B58: TOTAL SAVINGS | J58: =IFERROR(+H35+H54,"") -> 0 | L58: /Year
B60: PROJECT COST
B62: Enter the total cost of the proposed project including material, labor, and design | L62: 0
B64: SIMPLE PAYBACK
B66: PROJECT COST/ANNUAL SAVINGS | K66: =IF(ISERROR(+L62/J58),"",(+L62/J58)) ->  | M66: Years
B70: DESCRIPTION PAGE
B71: Dishwasher - Other Energy Conservation Measure
B72: Describe the existing system and the proposed energy conservation measure (use additional sheets if necessary):
B123: =Instructions!$B$79 -> MO 780-3070 (12-24)

Sheet Motor Upgrade (hidden)
B4: BUILDING | H4: LOCATION | M4: DATE
B6: INSTRUCTIONS
C7: To estimate the savings of a motor upgrade, the following information must be known:
C8: Motor horsepower (HP). | I8: Motor load (in percent).
C9: Operating hours of motor (hours). | I9: Monthly demand charge ($kW).
C10: Efficiency of existing motor (in percent). | I10: The electricity charge per tailblock ($/kWh).
C11: Efficiency of new motor (in percent).
C13: Please Note:
C14: This worksheet is only applicable to constant load and same size motors.
C15: This worksheet is not applicable to pulsating loads, VFDs, random loads, or loads that cycle at rapidly repeating intervals.
B17: ATTENTION
B18: **The Department reserves the right to determine if the worksheet is appropriate for the project and may request additional information. An Energy Conservation Measure (ECM) has the potential of affecting other areas within your facility or system.**
B19: MOTOR SAVINGS CALCULATION
C21: 1. Motor horsepower (HP) | G21: 2. Quantity | I21: 3. Motor load (%) | L21: 4. Operating hours of motor (hours)
C24: 5. Efficiency of existing motor (%) | G24: 6. Efficiency of new motor (%) | J24: 7. Monthly demand charge ($/kW) | M24: 8. Electricity charge per tailblock ($/kWh)
B28: ANNUAL SAVINGS
E30: Savings
E31: Electricity Usage Savings (kWh) | H31: Demand Savings (kW) | K31: Annual Cost Savings
E32: =IFERROR(C22*G22*I22*0.7457*L22*((1/C25)-(1/G25)),0) -> 0 | H32: =IFERROR(C22*G22*I22*0.7457*((1/C25)-(1/G25)),0) -> 0 | K32: =IFERROR((E32*M25)+(H32*J25),0) -> 0
B35: PROJECT COST
C37: 9. Enter the total cost of the proposed project including material, labor, and design | L37: 0
B39: SIMPLE PAYBACK
C41: 10. Estimated simple payback period | K41: =IF(ISERROR(+L37/#REF!),"",(+L37/#REF!)) ->  | L41: =IFERROR(L37/K32,0) -> 0
B45: DESCRIPTION PAGE
B46: Motor Upgrade Energy Conservation Measure
B47: Describe the existing system and the proposed energy conservation measure (use additional sheets if necessary):
B93: =Instructions!$B$79 -> MO 780-3070 (12-24)

Sheet Thermostat (hidden)
B4: BUILDING | H4: LOCATION | N4: DATE
B6: INSTRUCTIONS
C7: To estimate the savings possible from a night setback, the following information must be known:
C8: Total estimated weekday setback hours. | J8: Energy bills.
C9: Total estimated weekend setback hours. | J9: Area of the building.
C10: Average setback temperature difference. | J10: Area of the proposed project.
C11: The annual heating cost.
C13: Please Note:
C14: This worksheet is applicable for a setback no greater than an average of 5oF temperature difference.
C15: Item 1. The setback hours should be one or two hours before and after the building schedule. For example, if the building is occupied from 8 AM - 5 PM, weekday setback hours would be from 7 PM - 6 AM. The setback schedule should ensure the space is conditioned and comfortable for the occupants.
C16: Item 3. If the building is unoccupied during the weekends, please enter "24" hrs/day, as the building is vacant.
B17: ATTENTION
B18: **The Department reserves the right to determine if the worksheet is appropriate for the project and may request additional information. An Energy Conservation Measure (ECM) has the potential of affecting other areas within your facility or system.**
B19: SAVINGS CALCULATIONS
C21: 1 | D21: Enter the estimated weekday setback hours | O21: hrs/day
C22: 2 | D22: Multiply line 1 by 5 | K22: =M21*5 -> 0 | M22: Hours
C23: 3 | D23: Enter the estimated weekend setback hours | O23: hrs/day
C24: 4 | D24: Multiply line 3 by 2 | K24: =M23*2 -> 0 | M24: Hours
C25: 5 | D25: Add line 2 and line 4 | K25: =K22+K24 -> 0 | M25: Hours
C26: 6 | D26: Divide line 5 by168 hours | K26: =IF(K25>0,K25/168,"") -> 
C27: 7 | D27: Enter the average setback temperature difference | O27: oF
C28: 8 | D28: Multiply (line 6 x line 7) by 0.0105 | K28: =IFERROR(K26*M27*0.0105,"") -> 
C30: If the heating energy source is not used for any other purposes and the cost for heating the building is known, then skip lines 9 through 12 and enter the value on line 13. If the energy source supplies heating as well as other needs of the building, go to line 9.
C33: 9 | D33: Total the seven energy bills in which heating is included (e.g. Oct. through April) and enter that amount | O33: 0
C34: 10 | D34: Enter the amount of the neutral month (i.e., May) energy bill | O34: 0
C35: 11 | D35: Multiply line 10 by 7 | M35: =O34*7 -> 0
C36: 12 | D36: Subtract line 10 from line 9 AND ENTER THIS VALUE ON LINE 13 BELOW | M36: =IF(O34>0,O33-M35,0) -> 0
C37: 13 | D37: ANNUAL HEATING COST | M37: =M36 -> 0
B39: AREAS AFFECTED
C41: 14 | D41: Total area heated by meter | Q41: ft2
C42: 15 | D42: Area affected by the propose project | Q42: ft2
C43: 16 | D43: Divide line 9 by line 10 | M43: =IFERROR(O42/O41,0) -> 0
B45: ANNUAL SAVINGS
C47: 17 | D47: Multiply (line 8 x line 13) by line 16 | M47: =IFERROR(K28*M37*M43,"") ->  | O47: /Year
B49: PROJECT COST
C51: 18 | D51: Enter the total cost for the proposed project including material, labor, and design | M51: 0
B53: SIMPLE PAYBACK
C55: 19 | D55: Divide line 18 by line 17 | K55: =IFERROR(M51/M47,0) -> 0 | N55: Years
B59: DESCRIPTION PAGE
B60: Programmable Setback Thermostat Energy Conservation Measure
B61: Describe the existing system and the proposed energy conservation measure (use additional sheets if necessary):
B126: =Instructions!$B$79 -> MO 780-3070 (12-24)

Sheet Windows U-Value (hidden)
A1: Table 4. U-Factors for Various Fenestration Products in Btu/h · ft2 · °F
A3: Product Type | E3: Glass Only | G3: Vertical Installation | T3: Sloped Installation
G4: Operable (including sliding and swinging glass doors) | L4: Fixed | Q4: Curtain Wall | T4: Glass Only (Skylights) | V4: Manufactured Skylight | Z4: Site-Assembled Sloped/Overhead Glazing
A5: Frame Type | E5: Center of Glass | F5: Edge of Glass | G5: Aluminum Without Thermal Break | H5: Aluminum with Thermal Break | I5: Reinforced Vinyl/Aluminum Clad Wood | J5: Wood/Vinyl | K5: Insulated Fiberglass/Vinyl | L5: Aluminum Without Thermal Break | M5: Aluminum with Thermal Break | N5: Reinforced Vinyl/Aluminum Clad Wood | O5: Wood/Vinyl | P5: Insulated Fiberglass/Vinyl | Q5: Aluminum Without Thermal Break | R5: Aluminum with Thermal Break | S5: Structural Glazing | T5: Center of Glass | U5: Edge of Glass | V5: Aluminum Without Thermal Break | W5: Aluminum with Thermal Break | X5: Reinforced Vinyl/Aluminum Clad Wood | Y5: Wood/Vinyl | Z5: Aluminum Without Thermal Break | AA5: Aluminum with Thermal Break | AB5: Structural Glazing
A6: ID | C6: Glazing Type | D6: Glass Type
D7: Select the glass type | AF7: Select type of windows | AH7: Select storm window
A8: 1 | B8: Single Glazing | C8: 1/8 in. glass | D8: =B8&" - "&C8 -> Single Glazing - 1/8 in. glass | E8: 1.04 | F8: 1.04 | G8: 1.23 | H8: 1.07 | I8: 0.93 | J8: 0.91 | K8: 0.85 | L8: 1.12 | M8: 1.07 | N8: 0.98 | O8: 0.98 | P8: 1.04 | Q8: 1.21 | R8: 1.1 | S8: 1.1 | T8: 1.19 | U8: 1.19 | V8: 1.77 | W8: 1.7 | X8: 1.61 | Y8: 1.42 | Z8: 1.35 | AA8: 1.34 | AB8: 1.25 | AD8: Operable | AE8: Aluminum Without Thermal Break | AF8: =AD8&" - "&AE8 -> Operable - Aluminum Without Thermal Break | AH8: No storm window
A9: 2 | B9: Single Glazing | C9: 1/4 in. acrylic/polycarbonate | D9: =B9&" - "&C9 -> Single Glazing - 1/4 in. acrylic/polycarbonate | E9: 0.88 | F9: 0.88 | G9: 1.1 | H9: 0.94 | I9: 0.81 | J9: 0.8 | K9: 0.74 | L9: 0.98 | M9: 0.92 | N9: 0.84 | O9: 0.84 | P9: 0.88 | Q9: 1.06 | R9: 0.96 | S9: 0.96 | T9: 1.03 | U9: 1.03 | V9: 1.6 | W9: 1.54 | X9: 1.45 | Y9: 1.31 | Z9: 1.2 | AA9: 1.2 | AB9: 1.1 | AD9: Operable | AE9: Aluminum with Thermal Break | AF9: =AD9&" - "&AE9 -> Operable - Aluminum with Thermal Break | AG9: Storm Window | AH9: With storm window
A10: 3 | B10: Single Glazing | C10: 1/8 in. acrylic/polycarbonate | D10: Single Glazing - 1/8 in. acrylic/polycarbonate | E10: 0.96 | F10: 0.96 | G10: 1.17 | H10: 1.01 | I10: 0.87 | J10: 0.86 | K10: 0.79 | L10: 1.05 | M10: 0.99 | N10: 0.91 | O10: 0.91 | P10: 0.96 | Q10: 1.13 | R10: 1.03 | S10: 1.03 | T10: 1.11 | U10: 1.11 | V10: 1.68 | W10: 1.62 | X10: 1.53 | Y10: 1.39 | Z10: 1.27 | AA10: 1.27 | AB10: 1.18 | AD10: Operable | AE10: Reinforced Vinyl/Aluminum Clad Wood | AF10: Operable - Reinforced Vinyl/Aluminum Clad Wood | AG10: Storm Window
A11: 4 | B11: Double Glazing | C11: 1/4 in. air space | D11: Double Glazing - 1/4 in. air space | E11: 0.55 | F11: 0.64 | G11: 0.81 | H11: 0.64 | I11: 0.57 | J11: 0.55 | K11: 0.5 | L11: 0.68 | M11: 0.62 | N11: 0.56 | O11: 0.56 | P11: 0.55 | Q11: 0.77 | R11: 0.67 | S11: 0.63 | T11: 0.58 | U11: 0.66 | V11: 1.1 | W11: 0.96 | X11: 0.92 | Y11: 0.84 | Z11: 0.8 | AA11: 0.83 | AB11: 0.66 | AD11: Operable | AE11: Wood/Vinyl | AF11: Operable - Wood/Vinyl | AG11: Storm Window
A12: 5 | B12: Double Glazing | C12: 1/2 in. air space | D12: Double Glazing - 1/2 in. air space | E12: 0.48 | F12: 0.59 | G12: 0.76 | H12: 0.58 | I12: 0.52 | J12: 0.5 | K12: 0.45 | L12: 0.62 | M12: 0.56 | N12: 0.5 | O12: 0.5 | P12: 0.48 | Q12: 0.71 | R12: 0.61 | S12: 0.57 | T12: 0.57 | U12: 0.65 | V12: 1.09 | W12: 0.95 | X12: 0.91 | Y12: 0.84 | Z12: 0.79 | AA12: 0.82 | AB12: 0.65 | AD12: Operable | AE12: Insulated Fiberglass/Vinyl | AF12: Operable - Insulated Fiberglass/Vinyl | AG12: Storm Window
A13: 6 | B13: Double Glazing | C13: 1/4 in. argon space | D13: Double Glazing - 1/4 in. argon space | E13: 0.51 | F13: 0.61 | G13: 0.78 | H13: 0.61 | I13: 0.54 | J13: 0.52 | K13: 0.47 | L13: 0.65 | M13: 0.59 | N13: 0.53 | O13: 0.52 | P13: 0.51 | Q13: 0.74 | R13: 0.63 | S13: 0.59 | T13: 0.53 | U13: 0.63 | V13: 1.05 | W13: 0.91 | X13: 0.87 | Y13: 0.8 | Z13: 0.76 | AA13: 0.8 | AB13: 0.62 | AD13: Fixed | AE13: Aluminum Without Thermal Break | AF13: Fixed - Aluminum Without Thermal Break | AG13: Storm Window
A14: 7 | B14: Double Glazing | C14: 1/2 in. argon space | D14: Double Glazing - 1/2 in. argon space | E14: 0.45 | F14: 0.57 | G14: 0.73 | H14: 0.56 | I14: 0.5 | J14: 0.48 | K14: 0.43 | L14: 0.6 | M14: 0.53 | N14: 0.48 | O14: 0.47 | P14: 0.45 | Q14: 0.68 | R14: 0.58 | S14: 0.54 | T14: 0.53 | U14: 0.63 | V14: 1.05 | W14: 0.91 | X14: 0.87 | Y14: 0.8 | Z14: 0.76 | AA14: 0.8 | AB14: 0.62 | AD14: Fixed | AE14: Aluminum with Thermal Break | AF14: Fixed - Aluminum with Thermal Break | AG14: Storm Window
A15: 8 | B15: Double Glazing, e = 0.60 | C15: 1/4 in. air space | D15: Double Glazing, e = 0.60 - 1/4 in. air space | E15: 0.52 | F15: 0.62 | G15: 0.79 | H15: 0.61 | I15: 0.55 | J15: 0.53 | K15: 0.48 | L15: 0.66 | M15: 0.59 | N15: 0.54 | O15: 0.53 | P15: 0.52 | Q15: 0.74 | R15: 0.64 | S15: 0.6 | T15: 0.54 | U15: 0.63 | V15: 1.06 | W15: 0.92 | X15: 0.88 | Y15: 0.81 | Z15: 0.77 | AA15: 0.8 | AB15: 0.63 | AD15: Fixed | AE15: Reinforced Vinyl/Aluminum Clad Wood | AF15: Fixed - Reinforced Vinyl/Aluminum Clad Wood
A16: 9 | B16: Double Glazing, e = 0.60 | C16: 1/2 in. air space | D16: Double Glazing, e = 0.60 - 1/2 in. air space | E16: 0.44 | F16: 0.56 | G16: 0.72 | H16: 0.55 | I16: 0.49 | J16: 0.48 | K16: 0.43 | L16: 0.59 | M16: 0.53 | N16: 0.47 | O16: 0.47 | P16: 0.44 | Q16: 0.68 | R16: 0.57 | S16: 0.53 | T16: 0.53 | U16: 0.63 | V16: 1.05 | W16: 0.91 | X16: 0.87 | Y16: 0.8 | Z16: 0.76 | AA16: 0.8 | AB16: 0.62 | AD16: Fixed | AE16: Wood/Vinyl | AF16: Fixed - Wood/Vinyl
A17: 10 | B17: Double Glazing, e = 0.60 | C17: 1/4 in. argon space | D17: Double Glazing, e = 0.60 - 1/4 in. argon space | E17: 0.47 | F17: 0.58 | G17: 0.75 | H17: 0.57 | I17: 0.51 | J17: 0.5 | K17: 0.45 | L17: 0.61 | M17: 0.55 | N17: 0.49 | O17: 0.49 | P17: 0.47 | Q17: 0.7 | R17: 0.6 | S17: 0.56 | T17: 0.49 | U17: 0.6 | V17: 1.01 | W17: 0.87 | X17: 0.83 | Y17: 0.76 | Z17: 0.72 | AA17: 0.77 | AB17: 0.58 | AD17: Fixed | AE17: Insulated Fiberglass/Vinyl | AF17: Fixed - Insulated Fiberglass/Vinyl
A18: 11 | B18: Double Glazing, e = 0.60 | C18: 1/2 in. argon space | D18: Double Glazing, e = 0.60 - 1/2 in. argon space | E18: 0.41 | F18: 0.54 | G18: 0.7 | H18: 0.53 | I18: 0.47 | J18: 0.45 | K18: 0.41 | L18: 0.56 | M18: 0.5 | N18: 0.44 | O18: 0.44 | P18: 0.41 | Q18: 0.65 | R18: 0.55 | S18: 0.51 | T18: 0.49 | U18: 0.6 | V18: 1.01 | W18: 0.87 | X18: 0.83 | Y18: 0.76 | Z18: 0.72 | AA18: 0.77 | AB18: 0.58 | AD18: Curtain Wall | AE18: =AE8 -> Aluminum Without Thermal Break | AF18: Curtain Wall - Aluminum Without Thermal Break
A19: 12 | B19: Double Glazing, e = 0.40 | C19: 1/4 in. air space | D19: Double Glazing, e = 0.40 - 1/4 in. air space | E19: 0.49 | F19: 0.6 | G19: 0.76 | H19: 0.59 | I19: 0.53 | J19: 0.51 | K19: 0.46 | L19: 0.63 | M19: 0.57 | N19: 0.51 | O19: 0.51 | P19: 0.49 | Q19: 0.72 | R19: 0.62 | S19: 0.58 | T19: 0.51 | U19: 0.61 | V19: 1.03 | W19: 0.89 | X19: 0.85 | Y19: 0.78 | Z19: 0.74 | AA19: 0.78 | AB19: 0.6 | AD19: Curtain Wall | AE19: =AE9 -> Aluminum with Thermal Break | AF19: Curtain Wall - Aluminum with Thermal Break
A20: 13 | B20: Double Glazing, e = 0.40 | C20: 1/2 in. air space | D20: Double Glazing, e = 0.40 - 1/2 in. air space | E20: 0.4 | F20: 0.54 | G20: 0.69 | H20: 0.52 | I20: 0.47 | J20: 0.45 | K20: 0.4 | L20: 0.55 | M20: 0.49 | N20: 0.44 | O20: 0.43 | P20: 0.4 | Q20: 0.64 | R20: 0.54 | S20: 0.5 | T20: 0.5 | U20: 0.61 | V20: 1.02 | W20: 0.88 | X20: 0.84 | Y20: 0.77 | Z20: 0.73 | AA20: 0.78 | AB20: 0.59 | AD20: Curtain Wall | AE20: Structural Glazing | AF20: Curtain Wall - Structural Glazing
A21: 14 | B21: Double Glazing, e = 0.40 | C21: 1/4 in. argon space | D21: Double Glazing, e = 0.40 - 1/4 in. argon space | E21: 0.43 | F21: 0.56 | G21: 0.72 | H21: 0.54 | I21: 0.49 | J21: 0.47 | K21: 0.42 | L21: 0.58 | M21: 0.52 | N21: 0.46 | O21: 0.46 | P21: 0.43 | Q21: 0.67 | R21: 0.56 | S21: 0.52 | T21: 0.44 | U21: 0.56 | V21: 0.96 | W21: 0.83 | X21: 0.78 | Y21: 0.72 | Z21: 0.68 | AA21: 0.74 | AB21: 0.54
A22: 15 | B22: Double Glazing, e = 0.40 | C22: 1/2 in. argon space | D22: Double Glazing, e = 0.40 - 1/2 in. argon space | E22: 0.36 | F22: 0.51 | G22: 0.66 | H22: 0.49 | I22: 0.44 | J22: 0.42 | K22: 0.37 | L22: 0.52 | M22: 0.46 | N22: 0.4 | O22: 0.4 | P22: 0.36 | Q22: 0.61 | R22: 0.5 | S22: 0.46 | T22: 0.46 | U22: 0.58 | V22: 0.98 | W22: 0.85 | X22: 0.8 | Y22: 0.74 | Z22: 0.7 | AA22: 0.75 | AB22: 0.56
A23: 16 | B23: Double Glazing, e = 0.20 | C23: 1/4 in. air space | D23: Double Glazing, e = 0.20 - 1/4 in. air space | E23: 0.45 | F23: 0.57 | G23: 0.73 | H23: 0.56 | I23: 0.5 | J23: 0.48 | K23: 0.43 | L23: 0.6 | M23: 0.53 | N23: 0.48 | O23: 0.47 | P23: 0.45 | Q23: 0.68 | R23: 0.58 | S23: 0.54 | T23: 0.46 | U23: 0.58 | V23: 0.98 | W23: 0.85 | X23: 0.8 | Y23: 0.74 | Z23: 0.7 | AA23: 0.75 | AB23: 0.56
A24: 17 | B24: Double Glazing, e = 0.20 | C24: 1/2 in. air space | D24: Double Glazing, e = 0.20 - 1/2 in. air space | E24: 0.35 | F24: 0.5 | G24: 0.65 | H24: 0.48 | I24: 0.43 | J24: 0.41 | K24: 0.37 | L24: 0.51 | M24: 0.45 | N24: 0.39 | O24: 0.39 | P24: 0.35 | Q24: 0.6 | R24: 0.5 | S24: 0.45 | T24: 0.46 | U24: 0.58 | V24: 0.98 | W24: 0.85 | X24: 0.8 | Y24: 0.74 | Z24: 0.7 | AA24: 0.75 | AB24: 0.56
A25: 18 | B25: Double Glazing, e = 0.20 | C25: 1/4 in. argon space | D25: Double Glazing, e = 0.20 - 1/4 in. argon space | E25: 0.38 | F25: 0.52 | G25: 0.68 | H25: 0.51 | I25: 0.45 | J25: 0.43 | K25: 0.39 | L25: 0.54 | M25: 0.47 | N25: 0.42 | O25: 0.42 | P25: 0.38 | Q25: 0.62 | R25: 0.52 | S25: 0.48 | T25: 0.39 | U25: 0.53 | V25: 0.91 | W25: 0.78 | X25: 0.74 | Y25: 0.68 | Z25: 0.64 | AA25: 0.7 | AB25: 0.5
A26: 19 | B26: Double Glazing, e = 0.20 | C26: 1/2 in. argon space | D26: Double Glazing, e = 0.20 - 1/2 in. argon space | E26: 0.3 | F26: 0.46 | G26: 0.61 | H26: 0.45 | I26: 0.39 | J26: 0.38 | K26: 0.33 | L26: 0.47 | M26: 0.41 | N26: 0.35 | O26: 0.35 | P26: 0.3 | Q26: 0.55 | R26: 0.45 | S26: 0.41 | T26: 0.4 | U26: 0.54 | V26: 0.92 | W26: 0.79 | X26: 0.75 | Y26: 0.68 | Z26: 0.64 | AA26: 0.71 | AB26: 0.51
A27: 20 | B27: Double Glazing, e = 0.10 | C27: 1/4 in. air space | D27: Double Glazing, e = 0.10 - 1/4 in. air space | E27: 0.42 | F27: 0.55 | G27: 0.71 | H27: 0.54 | I27: 0.48 | J27: 0.46 | K27: 0.41 | L27: 0.57 | M27: 0.51 | N27: 0.45 | O27: 0.45 | P27: 0.42 | Q27: 0.66 | R27: 0.56 | S27: 0.51 | T27: 0.44 | U27: 0.56 | V27: 0.96 | W27: 0.83 | X27: 0.78 | Y27: 0.72 | Z27: 0.68 | AA27: 0.74 | AB27: 0.54
A28: 21 | B28: Double Glazing, e = 0.10 | C28: 1/2 in. air space | D28: Double Glazing, e = 0.10 - 1/2 in. air space | E28: 0.32 | F28: 0.48 | G28: 0.63 | H28: 0.46 | I28: 0.41 | J28: 0.39 | K28: 0.34 | L28: 0.49 | M28: 0.42 | N28: 0.37 | O28: 0.37 | P28: 0.32 | Q28: 0.57 | R28: 0.47 | S28: 0.43 | T28: 0.44 | U28: 0.56 | V28: 0.96 | W28: 0.83 | X28: 0.78 | Y28: 0.72 | Z28: 0.68 | AA28: 0.74 | AB28: 0.54
A29: 22 | B29: Double Glazing, e = 0.10 | C29: 1/4 in. argon space | D29: Double Glazing, e = 0.10 - 1/4 in. argon space | E29: 0.35 | F29: 0.5 | G29: 0.65 | H29: 0.48 | I29: 0.43 | J29: 0.41 | K29: 0.37 | L29: 0.51 | M29: 0.45 | N29: 0.39 | O29: 0.39 | P29: 0.35 | Q29: 0.6 | R29: 0.5 | S29: 0.45 | T29: 0.36 | U29: 0.51 | V29: 0.88 | W29: 0.75 | X29: 0.71 | Y29: 0.65 | Z29: 0.61 | AA29: 0.68 | AB29: 0.47
A30: 23 | B30: Double Glazing, e = 0.10 | C30: 1/2 in. argon space | D30: Double Glazing, e = 0.10 - 1/2 in. argon space | E30: 0.27 | F30: 0.44 | G30: 0.59 | H30: 0.42 | I30: 0.37 | J30: 0.36 | K30: 0.31 | L30: 0.44 | M30: 0.38 | N30: 0.33 | O30: 0.32 | P30: 0.27 | Q30: 0.53 | R30: 0.43 | S30: 0.38 | T30: 0.38 | U30: 0.52 | V30: 0.9 | W30: 0.77 | X30: 0.73 | Y30: 0.67 | Z30: 0.63 | AA30: 0.69 | AB30: 0.49
A31: 24 | B31: Double Glazing, e = 0.05 | C31: 1/4 in. air space | D31: Double Glazing, e = 0.05 - 1/4 in. air space | E31: 0.41 | F31: 0.54 | G31: 0.7 | H31: 0.53 | I31: 0.47 | J31: 0.45 | K31: 0.41 | L31: 0.56 | M31: 0.5 | N31: 0.44 | O31: 0.44 | P31: 0.41 | Q31: 0.65 | R31: 0.55 | S31: 0.51 | T31: 0.42 | U31: 0.55 | V31: 0.94 | W31: 0.81 | X31: 0.76 | Y31: 0.7 | Z31: 0.66 | AA31: 0.72 | AB31: 0.52
A32: 25 | B32: Double Glazing, e = 0.05 | C32: 1/2 in. air space | D32: Double Glazing, e = 0.05 - 1/2 in. air space | E32: 0.3 | F32: 0.46 | G32: 0.61 | H32: 0.45 | I32: 0.39 | J32: 0.38 | K32: 0.33 | L32: 0.47 | M32: 0.41 | N32: 0.35 | O32: 0.35 | P32: 0.3 | Q32: 0.55 | R32: 0.45 | S32: 0.41 | T32: 0.43 | U32: 0.56 | V32: 0.95 | W32: 0.82 | X32: 0.77 | Y32: 0.71 | Z32: 0.67 | AA32: 0.73 | AB32: 0.53
A33: 26 | B33: Double Glazing, e = 0.05 | C33: 1/4 in. argon space | D33: Double Glazing, e = 0.05 - 1/4 in. argon space | E33: 0.33 | F33: 0.48 | G33: 0.64 | H33: 0.47 | I33: 0.42 | J33: 0.4 | K33: 0.35 | L33: 0.49 | M33: 0.43 | N33: 0.38 | O33: 0.37 | P33: 0.33 | Q33: 0.58 | R33: 0.48 | S33: 0.44 | T33: 0.34 | U33: 0.49 | V33: 0.86 | W33: 0.73 | X33: 0.69 | Y33: 0.63 | Z33: 0.59 | AA33: 0.66 | AB33: 0.45
A34: 27 | B34: Double Glazing, e = 0.05 | C34: 1/2 in. argon space | D34: Double Glazing, e = 0.05 - 1/2 in. argon space | E34: 0.25 | F34: 0.42 | G34: 0.57 | H34: 0.41 | I34: 0.36 | J34: 0.34 | K34: 0.3 | L34: 0.43 | M34: 0.36 | N34: 0.31 | O34: 0.31 | P34: 0.25 | Q34: 0.51 | R34: 0.41 | S34: 0.37 | T34: 0.36 | U34: 0.51 | V34: 0.88 | W34: 0.75 | X34: 0.71 | Y34: 0.65 | Z34: 0.61 | AA34: 0.68 | AB34: 0.47
A35: 28 | B35: Triple Glazing | C35: 1/4 in. air spaces | D35: Triple Glazing - 1/4 in. air spaces | E35: 0.38 | F35: 0.52 | G35: 0.67 | H35: 0.49 | I35: 0.43 | J35: 0.43 | K35: 0.38 | L35: 0.53 | M35: 0.47 | N35: 0.42 | O35: 0.42 | P35: 0.38 | Q35: 0.61 | R35: 0.51 | S35: 0.46 | T35: 0.39 | U35: 0.53 | V35: 0.9 | W35: 0.75 | X35: 0.71 | Y35: 0.64 | Z35: 0.62 | AA35: 0.69 | AB35: 0.48
A36: 29 | B36: Triple Glazing | C36: 1/2 in. air spaces | D36: Triple Glazing - 1/2 in. air spaces | E36: 0.31 | F36: 0.47 | G36: 0.61 | H36: 0.44 | I36: 0.38 | J36: 0.38 | K36: 0.34 | L36: 0.47 | M36: 0.41 | N36: 0.36 | O36: 0.36 | P36: 0.31 | Q36: 0.55 | R36: 0.45 | S36: 0.4 | T36: 0.36 | U36: 0.51 | V36: 0.87 | W36: 0.72 | X36: 0.68 | Y36: 0.61 | Z36: 0.6 | AA36: 0.67 | AB36: 0.45
A37: 30 | B37: Triple Glazing | C37: 1/4 in. argon spaces | D37: Triple Glazing - 1/4 in. argon spaces | E37: 0.34 | F37: 0.49 | G37: 0.63 | H37: 0.46 | I37: 0.41 | J37: 0.4 | K37: 0.36 | L37: 0.5 | M37: 0.44 | N37: 0.38 | O37: 0.38 | P37: 0.34 | Q37: 0.58 | R37: 0.48 | S37: 0.43 | T37: 0.35 | U37: 0.5 | V37: 0.86 | W37: 0.71 | X37: 0.67 | Y37: 0.6 | Z37: 0.59 | AA37: 0.66 | AB37: 0.44
A38: 31 | B38: Triple Glazing | C38: 1/2 in. argon spaces | D38: Triple Glazing - 1/2 in. argon spaces | E38: 0.29 | F38: 0.45 | G38: 0.59 | H38: 0.42 | I38: 0.37 | J38: 0.36 | K38: 0.32 | L38: 0.45 | M38: 0.4 | N38: 0.34 | O38: 0.34 | P38: 0.29 | Q38: 0.53 | R38: 0.43 | S38: 0.38 | T38: 0.33 | U38: 0.48 | V38: 0.84 | W38: 0.69 | X38: 0.65 | Y38: 0.59 | Z38: 0.57 | AA38: 0.65 | AB38: 0.42
A39: 32 | B39: Triple Glazing, e = 0.20 | C39: 1/4 in. air spaces | D39: Triple Glazing, e = 0.20 - 1/4 in. air spaces | E39: 0.33 | F39: 0.48 | G39: 0.62 | H39: 0.45 | I39: 0.4 | J39: 0.39 | K39: 0.35 | L39: 0.49 | M39: 0.43 | N39: 0.37 | O39: 0.37 | P39: 0.33 | Q39: 0.57 | R39: 0.47 | S39: 0.42 | T39: 0.34 | U39: 0.49 | V39: 0.85 | W39: 0.7 | X39: 0.66 | Y39: 0.59 | Z39: 0.58 | AA39: 0.65 | AB39: 0.43
A40: 33 | B40: Triple Glazing, e = 0.20 | C40: 1/2 in. air spaces | D40: Triple Glazing, e = 0.20 - 1/2 in. air spaces | E40: 0.25 | F40: 0.42 | G40: 0.56 | H40: 0.39 | I40: 0.34 | J40: 0.33 | K40: 0.29 | L40: 0.42 | M40: 0.36 | N40: 0.31 | O40: 0.31 | P40: 0.25 | Q40: 0.5 | R40: 0.4 | S40: 0.35 | T40: 0.31 | U40: 0.47 | V40: 0.82 | W40: 0.67 | X40: 0.63 | Y40: 0.57 | Z40: 0.56 | AA40: 0.63 | AB40: 0.41
A41: 34 | B41: Triple Glazing, e = 0.20 | C41: 1/4 in. argon spaces | D41: Triple Glazing, e = 0.20 - 1/4 in. argon spaces | E41: 0.28 | F41: 0.45 | G41: 0.58 | H41: 0.41 | I41: 0.36 | J41: 0.36 | K41: 0.31 | L41: 0.45 | M41: 0.39 | N41: 0.33 | O41: 0.33 | P41: 0.28 | Q41: 0.53 | R41: 0.43 | S41: 0.37 | T41: 0.28 | U41: 0.45 | V41: 0.8 | W41: 0.64 | X41: 0.6 | Y41: 0.54 | Z41: 0.53 | AA41: 0.61 | AB41: 0.38
A42: 35 | B42: Triple Glazing, e = 0.20 | C42: 1/2 in. argon spaces | D42: Triple Glazing, e = 0.20 - 1/2 in. argon spaces | E42: 0.22 | F42: 0.4 | G42: 0.54 | H42: 0.37 | I42: 0.32 | J42: 0.31 | K42: 0.27 | L42: 0.39 | M42: 0.33 | N42: 0.28 | O42: 0.28 | P42: 0.22 | Q42: 0.47 | R42: 0.37 | S42: 0.32 | T42: 0.27 | U42: 0.44 | V42: 0.79 | W42: 0.63 | X42: 0.59 | Y42: 0.53 | Z42: 0.52 | AA42: 0.6 | AB42: 0.37
A43: 36 | B43: Triple Glazing, e = 0.20 | C43: 1/4 in. air spaces | D43: Triple Glazing, e = 0.20 - 1/4 in. air spaces | E43: 0.29 | F43: 0.45 | G43: 0.59 | H43: 0.42 | I43: 0.37 | J43: 0.36 | K43: 0.32 | L43: 0.45 | M43: 0.4 | N43: 0.34 | O43: 0.34 | P43: 0.29 | Q43: 0.53 | R43: 0.43 | S43: 0.38 | T43: 0.29 | U43: 0.45 | V43: 0.81 | W43: 0.65 | X43: 0.61 | Y43: 0.55 | Z43: 0.54 | AA43: 0.62 | AB43: 0.39
A44: 37 | B44: Triple Glazing, e = 0.20 | C44: 1/2 in. air spaces | D44: Triple Glazing, e = 0.20 - 1/2 in. air spaces | E44: 0.2 | F44: 0.39 | G44: 0.52 | H44: 0.35 | I44: 0.31 | J44: 0.3 | K44: 0.26 | L44: 0.38 | M44: 0.32 | N44: 0.26 | O44: 0.26 | P44: 0.2 | Q44: 0.46 | R44: 0.36 | S44: 0.3 | T44: 0.27 | U44: 0.44 | V44: 0.79 | W44: 0.63 | X44: 0.59 | Y44: 0.53 | Z44: 0.52 | AA44: 0.6 | AB44: 0.37
A45: 38 | B45: Triple Glazing, e = 0.20 | C45: 1/4 in. argon spaces | D45: Triple Glazing, e = 0.20 - 1/4 in. argon spaces | E45: 0.23 | F45: 0.41 | G45: 0.54 | H45: 0.37 | I45: 0.33 | J45: 0.32 | K45: 0.28 | L45: 0.4 | M45: 0.34 | N45: 0.29 | O45: 0.29 | P45: 0.23 | Q45: 0.48 | R45: 0.38 | S45: 0.33 | T45: 0.24 | U45: 0.42 | V45: 0.76 | W45: 0.6 | X45: 0.57 | Y45: 0.5 | Z45: 0.49 | AA45: 0.58 | AB45: 0.35
A46: 39 | B46: Triple Glazing, e = 0.20 | C46: 1/2 in. argon spaces | D46: Triple Glazing, e = 0.20 - 1/2 in. argon spaces | E46: 0.17 | F46: 0.36 | G46: 0.49 | H46: 0.33 | I46: 0.28 | J46: 0.28 | K46: 0.24 | L46: 0.35 | M46: 0.29 | N46: 0.24 | O46: 0.24 | P46: 0.17 | Q46: 0.43 | R46: 0.33 | S46: 0.28 | T46: 0.22 | U46: 0.4 | V46: 0.74 | W46: 0.58 | X46: 0.55 | Y46: 0.49 | Z46: 0.48 | AA46: 0.57 | AB46: 0.33
A47: 40 | B47: Triple Glazing, e = 0.10 | C47: 1/4 in. air spaces | D47: Triple Glazing, e = 0.10 - 1/4 in. air spaces | E47: 0.27 | F47: 0.44 | G47: 0.58 | H47: 0.4 | I47: 0.36 | J47: 0.35 | K47: 0.31 | L47: 0.44 | M47: 0.38 | N47: 0.32 | O47: 0.32 | P47: 0.27 | Q47: 0.52 | R47: 0.42 | S47: 0.37 | T47: 0.27 | U47: 0.44 | V47: 0.79 | W47: 0.63 | X47: 0.59 | Y47: 0.53 | Z47: 0.52 | AA47: 0.6 | AB47: 0.37
A48: 41 | B48: Triple Glazing, e = 0.10 | C48: 1/2 in. air spaces | D48: Triple Glazing, e = 0.10 - 1/2 in. air spaces | E48: 0.18 | F48: 0.37 | G48: 0.5 | H48: 0.34 | I48: 0.29 | J48: 0.28 | K48: 0.25 | L48: 0.36 | M48: 0.3 | N48: 0.25 | O48: 0.25 | P48: 0.18 | Q48: 0.44 | R48: 0.34 | S48: 0.29 | T48: 0.25 | U48: 0.42 | V48: 0.77 | W48: 0.61 | X48: 0.57 | Y48: 0.51 | Z48: 0.5 | AA48: 0.59 | AB48: 0.36
A49: 42 | B49: Triple Glazing, e = 0.10 | C49: 1/4 in. argon spaces | D49: Triple Glazing, e = 0.10 - 1/4 in. argon spaces | E49: 0.21 | F49: 0.39 | G49: 0.53 | H49: 0.36 | I49: 0.31 | J49: 0.31 | K49: 0.27 | L49: 0.38 | M49: 0.33 | N49: 0.27 | O49: 0.27 | P49: 0.21 | Q49: 0.46 | R49: 0.36 | S49: 0.31 | T49: 0.21 | U49: 0.39 | V49: 0.73 | W49: 0.57 | X49: 0.54 | Y49: 0.48 | Z49: 0.47 | AA49: 0.56 | AB49: 0.32
A50: 43 | B50: Triple Glazing, e = 0.10 | C50: 1/2 in. argon spaces | D50: Triple Glazing, e = 0.10 - 1/2 in. argon spaces | E50: 0.14 | F50: 0.34 | G50: 0.47 | H50: 0.3 | I50: 0.26 | J50: 0.26 | K50: 0.22 | L50: 0.32 | M50: 0.27 | N50: 0.21 | O50: 0.21 | P50: 0.14 | Q50: 0.4 | R50: 0.3 | S50: 0.25 | T50: 0.2 | U50: 0.39 | V50: 0.72 | W50: 0.56 | X50: 0.53 | Y50: 0.47 | Z50: 0.46 | AA50: 0.55 | AB50: 0.31
A51: 44 | B51: Quadruple Glazing, e = 0.10 | C51: 1/4 in. air spaces | D51: Quadruple Glazing, e = 0.10 - 1/4 in. air spaces | E51: 0.22 | F51: 0.4 | G51: 0.54 | H51: 0.37 | I51: 0.32 | J51: 0.31 | K51: 0.27 | L51: 0.39 | M51: 0.33 | N51: 0.28 | O51: 0.28 | P51: 0.22 | Q51: 0.47 | R51: 0.37 | S51: 0.32 | T51: 0.22 | U51: 0.4 | V51: 0.74 | W51: 0.58 | X51: 0.55 | Y51: 0.49 | Z51: 0.48 | AA51: 0.57 | AB51: 0.33
A52: 45 | B52: Quadruple Glazing, e = 0.10 | C52: 1/2 in. air spaces | D52: Quadruple Glazing, e = 0.10 - 1/2 in. air spaces | E52: 0.15 | F52: 0.35 | G52: 0.48 | H52: 0.31 | I52: 0.27 | J52: 0.26 | K52: 0.23 | L52: 0.33 | M52: 0.27 | N52: 0.22 | O52: 0.22 | P52: 0.15 | Q52: 0.41 | R52: 0.31 | S52: 0.26 | T52: 0.19 | U52: 0.38 | V52: 0.71 | W52: 0.55 | X52: 0.52 | Y52: 0.46 | Z52: 0.45 | AA52: 0.54 | AB52: 0.3
A53: 46 | B53: Quadruple Glazing, e = 0.10 | C53: 1/4 in. argon spaces | D53: =B53&" - "&C53 -> Quadruple Glazing, e = 0.10 - 1/4 in. argon spaces | E53: 0.17 | F53: 0.36 | G53: 0.49 | H53: 0.33 | I53: 0.28 | J53: 0.28 | K53: 0.24 | L53: 0.35 | M53: 0.29 | N53: 0.24 | O53: 0.24 | P53: 0.17 | Q53: 0.43 | R53: 0.33 | S53: 0.28 | T53: 0.18 | U53: 0.37 | V53: 0.7 | W53: 0.54 | X53: 0.51 | Y53: 0.45 | Z53: 0.44 | AA53: 0.54 | AB53: 0.29
A54: 47 | B54: Quadruple Glazing, e = 0.10 | C54: 1/2 in. argon spaces | D54: Quadruple Glazing, e = 0.10 - 1/2 in. argon spaces | E54: 0.12 | F54: 0.32 | G54: 0.45 | H54: 0.29 | I54: 0.25 | J54: 0.24 | K54: 0.2 | L54: 0.31 | M54: 0.25 | N54: 0.2 | O54: 0.2 | P54: 0.12 | Q54: 0.39 | R54: 0.29 | S54: 0.23 | T54: 0.16 | U54: 0.35 | V54: 0.68 | W54: 0.52 | X54: 0.49 | Y54: 0.43 | Z54: 0.42 | AA54: 0.52 | AB54: 0.28
A55: 48 | B55: Quadruple Glazing, e = 0.10 | C55: 1/4 in. krypton spaces | D55: Quadruple Glazing, e = 0.10 - 1/4 in. krypton spaces | E55: 0.12 | F55: 0.32 | G55: 0.45 | H55: 0.29 | I55: 0.25 | J55: 0.24 | K55: 0.2 | L55: 0.31 | M55: 0.25 | N55: 0.2 | O55: 0.2 | P55: 0.12 | Q55: 0.39 | R55: 0.29 | S55: 0.23 | T55: 0.13 | U55: 0.33 | V55: 0.65 | W55: 0.49 | X55: 0.46 | Y55: 0.4 | Z55: 0.4 | AA55: 0.5 | AB55: 0.25
A57: Notes:

Sheet Fuel Use Summary (2) (hidden)
F1: Applicant Organization Name
F2: =IF('Application Authorization Form'!B7=0,"",'Application Authorization Form'!B7) -> 
F3: Specific Building or System Name
N4: Fuel Units | O4: MMBTU conversion Factor
F5: Total Area Cooled in Square Feet | I5: Total Area Heated in Square Feet | N5: CCF | O5: 10 | P5: MMBtu
N6: Therm | O6: 10 | P6: MMBtu
B7: SERVICE DATES | E7: Utility providing Fuel | H7: SERVICE DATES | J7: Utility providing Fuel | N7: MMBtu | O7: 1 | P7: MMBtu
N8: Gallon Propane | O8: 10.9 | P8: MMBtu
B9: FROM | D9: TO | E9: ELECTRICITY | H9: FROM | I9: TO | J9: FUEL Natural Gas/ Fuel Oil / LPG / Other | N9: Gallon Oil | O9: 7.2 | P9: MMBtu
B10: MM/DD/YYYY | D10: MM/DD/YYYY | E10: USAGE | F10: DEMAND | G10: COST | H10: MM/DD/YYYY | I10: MM/DD/YYYY | J10: USAGE | K10: COST | N10: Ton Coal | O10: 0.045 | P10: MMBtu
E11: (kWh) | F11: (kW) | G11: ($) | J11: CCF | K11: ($) | N11: Cord Wood | O11: 0.045 | P11: MMBtu
B24: ANNUAL TOTAL | E24: =SUM(E12:E23) -> 0 | G24: =SUM(G12:G23) -> 0 | J24: =SUM(J12:J23) -> 0 | K24: =SUM(K12:K23) -> 0
B25: AVERAGE UNIT COST | E25: =IFERROR(G24/E24,"") ->  | G25: $/kWh | J25: =IFERROR(K24/J24,"") ->  | K25: ="$ per "&J11 -> $ per CCF
E26: =IFERROR(E25*1000000/3412,"") ->  | G26: $/MMBtu | J26: =IFERROR(J25*VLOOKUP(J11,N5:O9,2,FALSE),"") ->  | K26: $/MMBtu
B27: ACCOUNT NUMBER
B29: METER NUMBER
B32: FUEL USE SUMMARY - INSTRUCTION
C34: Please complete an individual Fuel Use Summary for each meter with proposed energy conservation measures.
C35: Please complete the Fuel Use Summary using data from the most recent 12 months of energy bills. Copies of those energy bills must be submitted with the application.
B37: FUEL USE SUMMARY FOR MULTIPLE METERS
C39: If the project involves more than one meter, please fill out a fuel use summary for each meter by clicking a button below.
B46: CONVERSION TABLE
C48: The table below contains information for the various fuels necessary to compute the cost of a million Btu (MMBtu) for each fuel. To use the table, find the relevant fuel type, determine the cost per unit of that fuel and multiply by the appropriate conversion number to obtain the cost per MMBtu.
D50: Fuel Type | E50: Abbreviation | F50: Multiply | G50: By | H50: To Obtain
D52: Electricity | E52: E | F52: $/Kwh | G52: 293 | H52: $/MMBtu
D54: Natural Gas | E54: NG | F54: $/Therm | G54: 10 | H54: $/MMBtu
D56: Natural Gas | E56: NG | F56: $/CCF | G56: 10 | H56: $/MMBtu
D58: Propane | E58: LPG | F58: $/Gallon | G58: 10.9 | H58: $/MMBtu
D60: Oil | E60: Oil | F60: $/Gallon | G60: 7.2 | H60: $/MMBtu
D62: Coal | E62: Coal | F62: $/Ton | G62: 0.045 | H62: $/MMBtu
D64: Wood | E64: Wood | F64: $/Cord | G64: 0.045 | H64: $/MMBtu
B73: =Instructions!$B$79 -> MO 780-3070 (12-24)

Sheet Fuel Use Summary (3) (hidden)
F1: Applicant Organization Name
F2: =IF('Application Authorization Form'!B7=0,"",'Application Authorization Form'!B7) -> 
F3: Specific Building or System Name
N4: Fuel Units | O4: MMBTU conversion Factor
F5: Total Area Cooled in Square Feet | I5: Total Area Heated in Square Feet | N5: CCF | O5: 10 | P5: MMBtu
N6: Therm | O6: 10 | P6: MMBtu
B7: SERVICE DATES | E7: Utility providing Fuel | H7: SERVICE DATES | J7: Utility providing Fuel | N7: MMBtu | O7: 1 | P7: MMBtu
N8: Gallon Propane | O8: 10.9 | P8: MMBtu
B9: FROM | D9: TO | E9: ELECTRICITY | H9: FROM | I9: TO | J9: FUEL Natural Gas/ Fuel Oil / LPG / Other | N9: Gallon Oil | O9: 7.2 | P9: MMBtu
B10: MM/DD/YYYY | D10: MM/DD/YYYY | E10: USAGE | F10: DEMAND | G10: COST | H10: MM/DD/YYYY | I10: MM/DD/YYYY | J10: USAGE | K10: COST | N10: Ton Coal | O10: 0.045 | P10: MMBtu
E11: (kWh) | F11: (kW) | G11: ($) | J11: CCF | K11: ($) | N11: Cord Wood | O11: 0.045 | P11: MMBtu
B24: ANNUAL TOTAL | E24: =SUM(E12:E23) -> 0 | G24: =SUM(G12:G23) -> 0 | J24: =SUM(J12:J23) -> 0 | K24: =SUM(K12:K23) -> 0
B25: AVERAGE UNIT COST | E25: =IFERROR(G24/E24,"") ->  | G25: $/kWh | J25: =IFERROR(K24/J24,"") ->  | K25: ="$ per "&J11 -> $ per CCF
E26: =IFERROR(E25*1000000/3412,"") ->  | G26: $/MMBtu | J26: =IFERROR(J25*VLOOKUP(J11,N5:O9,2,FALSE),"") ->  | K26: $/MMBtu
B27: ACCOUNT NUMBER
B29: METER NUMBER
B32: FUEL USE SUMMARY - INSTRUCTION
C34: Please complete an individual Fuel Use Summary for each meter with proposed energy conservation measures.
C35: Please complete the Fuel Use Summary using data from the most recent 12 months of energy bills. Copies of those energy bills must be submitted with the application.
B37: FUEL USE SUMMARY FOR MULTIPLE METERS
C39: If the project involves more than one meter, please fill out a fuel use summary for each meter by clicking a button below.
B46: CONVERSION TABLE
C48: The table below contains information for the various fuels necessary to compute the cost of a million Btu (MMBtu) for each fuel. To use the table, find the relevant fuel type, determine the cost per unit of that fuel and multiply by the appropriate conversion number to obtain the cost per MMBtu.
D50: Fuel Type | E50: Abbreviation | F50: Multiply | G50: By | H50: To Obtain
D52: Electricity | E52: E | F52: $/Kwh | G52: 293 | H52: $/MMBtu
D54: Natural Gas | E54: NG | F54: $/Therm | G54: 10 | H54: $/MMBtu
D56: Natural Gas | E56: NG | F56: $/CCF | G56: 10 | H56: $/MMBtu
D58: Propane | E58: LPG | F58: $/Gallon | G58: 10.9 | H58: $/MMBtu
D60: Oil | E60: Oil | F60: $/Gallon | G60: 7.2 | H60: $/MMBtu
D62: Coal | E62: Coal | F62: $/Ton | G62: 0.045 | H62: $/MMBtu
D64: Wood | E64: Wood | F64: $/Cord | G64: 0.045 | H64: $/MMBtu
B73: =Instructions!$B$79 -> MO 780-3070 (12-24)

Sheet Fuel Use Summary (4) (hidden)
F1: Applicant Organization Name
F2: =IF('Application Authorization Form'!B7=0,"",'Application Authorization Form'!B7) -> 
F3: Specific Building or System Name
N4: Fuel Units | O4: MMBTU conversion Factor
F5: Total Area Cooled in Square Feet | I5: Total Area Heated in Square Feet | N5: CCF | O5: 10 | P5: MMBtu
N6: Therm | O6: 10 | P6: MMBtu
B7: SERVICE DATES | E7: Utility providing Fuel | H7: SERVICE DATES | J7: Utility providing Fuel | N7: MMBtu | O7: 1 | P7: MMBtu
N8: Gallon Propane | O8: 10.9 | P8: MMBtu
B9: FROM | D9: TO | E9: ELECTRICITY | H9: FROM | I9: TO | J9: FUEL Natural Gas/ Fuel Oil / LPG / Other | N9: Gallon Oil | O9: 7.2 | P9: MMBtu
B10: MM/DD/YYYY | D10: MM/DD/YYYY | E10: USAGE | F10: DEMAND | G10: COST | H10: MM/DD/YYYY | I10: MM/DD/YYYY | J10: USAGE | K10: COST | N10: Ton Coal | O10: 0.045 | P10: MMBtu
E11: (kWh) | F11: (kW) | G11: ($) | J11: CCF | K11: ($) | N11: Cord Wood | O11: 0.045 | P11: MMBtu
B24: ANNUAL TOTAL | E24: =SUM(E12:E23) -> 0 | G24: =SUM(G12:G23) -> 0 | J24: =SUM(J12:J23) -> 0 | K24: =SUM(K12:K23) -> 0
B25: AVERAGE UNIT COST | E25: =IFERROR(G24/E24,"") ->  | G25: $/kWh | J25: =IFERROR(K24/J24,"") ->  | K25: ="$ per "&J11 -> $ per CCF
E26: =IFERROR(E25*1000000/3412,"") ->  | G26: $/MMBtu | J26: =IFERROR(J25*VLOOKUP(J11,N5:O9,2,FALSE),"") ->  | K26: $/MMBtu
B27: ACCOUNT NUMBER
B29: METER NUMBER
B32: FUEL USE SUMMARY - INSTRUCTION
C34: Please complete an individual Fuel Use Summary for each meter with proposed energy conservation measures.
C35: Please complete the Fuel Use Summary using data from the most recent 12 months of energy bills. Copies of those energy bills must be submitted with the application.
B37: FUEL USE SUMMARY FOR MULTIPLE METERS
C39: If the project involves more than one meter, please fill out a fuel use summary for each meter by clicking a button below.
B46: CONVERSION TABLE
C48: The table below contains information for the various fuels necessary to compute the cost of a million Btu (MMBtu) for each fuel. To use the table, find the relevant fuel type, determine the cost per unit of that fuel and multiply by the appropriate conversion number to obtain the cost per MMBtu.
D50: Fuel Type | E50: Abbreviation | F50: Multiply | G50: By | H50: To Obtain
D52: Electricity | E52: E | F52: $/Kwh | G52: 293 | H52: $/MMBtu
D54: Natural Gas | E54: NG | F54: $/Therm | G54: 10 | H54: $/MMBtu
D56: Natural Gas | E56: NG | F56: $/CCF | G56: 10 | H56: $/MMBtu
D58: Propane | E58: LPG | F58: $/Gallon | G58: 10.9 | H58: $/MMBtu
D60: Oil | E60: Oil | F60: $/Gallon | G60: 7.2 | H60: $/MMBtu
D62: Coal | E62: Coal | F62: $/Ton | G62: 0.045 | H62: $/MMBtu
D64: Wood | E64: Wood | F64: $/Cord | G64: 0.045 | H64: $/MMBtu
B73: =Instructions!$B$79 -> MO 780-3070 (12-24)

Sheet Fuel Use Summary (5) (hidden)
F1: Applicant Organization Name
F2: =IF('Application Authorization Form'!B7=0,"",'Application Authorization Form'!B7) -> 
F3: Specific Building or System Name
N4: Fuel Units | O4: MMBTU conversion Factor
F5: Total Area Cooled in Square Feet | I5: Total Area Heated in Square Feet | N5: CCF | O5: 10 | P5: MMBtu
N6: Therm | O6: 10 | P6: MMBtu
B7: SERVICE DATES | E7: Utility providing Fuel | H7: SERVICE DATES | J7: Utility providing Fuel | N7: MMBtu | O7: 1 | P7: MMBtu
N8: Gallon Propane | O8: 10.9 | P8: MMBtu
B9: FROM | D9: TO | E9: ELECTRICITY | H9: FROM | I9: TO | J9: FUEL Natural Gas/ Fuel Oil / LPG / Other | N9: Gallon Oil | O9: 7.2 | P9: MMBtu
B10: MM/DD/YYYY | D10: MM/DD/YYYY | E10: USAGE | F10: DEMAND | G10: COST | H10: MM/DD/YYYY | I10: MM/DD/YYYY | J10: USAGE | K10: COST | N10: Ton Coal | O10: 0.045 | P10: MMBtu
E11: (kWh) | F11: (kW) | G11: ($) | J11: CCF | K11: ($) | N11: Cord Wood | O11: 0.045 | P11: MMBtu
B24: ANNUAL TOTAL | E24: =SUM(E12:E23) -> 0 | G24: =SUM(G12:G23) -> 0 | J24: =SUM(J12:J23) -> 0 | K24: =SUM(K12:K23) -> 0
B25: AVERAGE UNIT COST | E25: =IFERROR(G24/E24,"") ->  | G25: $/kWh | J25: =IFERROR(K24/J24,"") ->  | K25: ="$ per "&J11 -> $ per CCF
E26: =IFERROR(E25*1000000/3412,"") ->  | G26: $/MMBtu | J26: =IFERROR(J25*VLOOKUP(J11,N5:O9,2,FALSE),"") ->  | K26: $/MMBtu
B27: ACCOUNT NUMBER
B29: METER NUMBER
B32: FUEL USE SUMMARY - INSTRUCTION
C34: Please complete an individual Fuel Use Summary for each meter with proposed energy conservation measures.
C35: Please complete the Fuel Use Summary using data from the most recent 12 months of energy bills. Copies of those energy bills must be submitted with the application.
B37: FUEL USE SUMMARY FOR MULTIPLE METERS
C39: If the project involves more than one meter, please fill out a fuel use summary for each meter by clicking a button below.
B46: CONVERSION TABLE
C48: The table below contains information for the various fuels necessary to compute the cost of a million Btu (MMBtu) for each fuel. To use the table, find the relevant fuel type, determine the cost per unit of that fuel and multiply by the appropriate conversion number to obtain the cost per MMBtu.
D50: Fuel Type | E50: Abbreviation | F50: Multiply | G50: By | H50: To Obtain
D52: Electricity | E52: E | F52: $/Kwh | G52: 293 | H52: $/MMBtu
D54: Natural Gas | E54: NG | F54: $/Therm | G54: 10 | H54: $/MMBtu
D56: Natural Gas | E56: NG | F56: $/CCF | G56: 10 | H56: $/MMBtu
D58: Propane | E58: LPG | F58: $/Gallon | G58: 10.9 | H58: $/MMBtu
D60: Oil | E60: Oil | F60: $/Gallon | G60: 7.2 | H60: $/MMBtu
D62: Coal | E62: Coal | F62: $/Ton | G62: 0.045 | H62: $/MMBtu
D64: Wood | E64: Wood | F64: $/Cord | G64: 0.045 | H64: $/MMBtu
B73: =Instructions!$B$79 -> MO 780-3070 (12-24)

Sheet Fuel Use Summary (6) (hidden)
F1: Applicant Organization Name
F2: =IF('Application Authorization Form'!B7=0,"",'Application Authorization Form'!B7) -> 
F3: Specific Building or System Name
N4: Fuel Units | O4: MMBTU conversion Factor
F5: Total Area Cooled in Square Feet | I5: Total Area Heated in Square Feet | N5: CCF | O5: 10 | P5: MMBtu
N6: Therm | O6: 10 | P6: MMBtu
B7: SERVICE DATES | E7: Utility providing Fuel | H7: SERVICE DATES | J7: Utility providing Fuel | N7: MMBtu | O7: 1 | P7: MMBtu
N8: Gallon Propane | O8: 10.9 | P8: MMBtu
B9: FROM | D9: TO | E9: ELECTRICITY | H9: FROM | I9: TO | J9: FUEL Natural Gas/ Fuel Oil / LPG / Other | N9: Gallon Oil | O9: 7.2 | P9: MMBtu
B10: MM/DD/YYYY | D10: MM/DD/YYYY | E10: USAGE | F10: DEMAND | G10: COST | H10: MM/DD/YYYY | I10: MM/DD/YYYY | J10: USAGE | K10: COST | N10: Ton Coal | O10: 0.045 | P10: MMBtu
E11: (kWh) | F11: (kW) | G11: ($) | J11: CCF | K11: ($) | N11: Cord Wood | O11: 0.045 | P11: MMBtu
B24: ANNUAL TOTAL | E24: =SUM(E12:E23) -> 0 | G24: =SUM(G12:G23) -> 0 | J24: =SUM(J12:J23) -> 0 | K24: =SUM(K12:K23) -> 0
B25: AVERAGE UNIT COST | E25: =IFERROR(G24/E24,"") ->  | G25: $/kWh | J25: =IFERROR(K24/J24,"") ->  | K25: ="$ per "&J11 -> $ per CCF
E26: =IFERROR(E25*1000000/3412,"") ->  | G26: $/MMBtu | J26: =IFERROR(J25*VLOOKUP(J11,N5:O9,2,FALSE),"") ->  | K26: $/MMBtu
B27: ACCOUNT NUMBER
B29: METER NUMBER
B32: FUEL USE SUMMARY - INSTRUCTION
C34: Please complete an individual Fuel Use Summary for each meter with proposed energy conservation measures.
C35: Please complete the Fuel Use Summary using data from the most recent 12 months of energy bills. Copies of those energy bills must be submitted with the application.
B37: FUEL USE SUMMARY FOR MULTIPLE METERS
C39: If the project involves more than one meter, please fill out a fuel use summary for each meter by clicking a button below.
B46: CONVERSION TABLE
C48: The table below contains information for the various fuels necessary to compute the cost of a million Btu (MMBtu) for each fuel. To use the table, find the relevant fuel type, determine the cost per unit of that fuel and multiply by the appropriate conversion number to obtain the cost per MMBtu.
D50: Fuel Type | E50: Abbreviation | F50: Multiply | G50: By | H50: To Obtain
D52: Electricity | E52: E | F52: $/Kwh | G52: 293 | H52: $/MMBtu
D54: Natural Gas | E54: NG | F54: $/Therm | G54: 10 | H54: $/MMBtu
D56: Natural Gas | E56: NG | F56: $/CCF | G56: 10 | H56: $/MMBtu
D58: Propane | E58: LPG | F58: $/Gallon | G58: 10.9 | H58: $/MMBtu
D60: Oil | E60: Oil | F60: $/Gallon | G60: 7.2 | H60: $/MMBtu
D62: Coal | E62: Coal | F62: $/Ton | G62: 0.045 | H62: $/MMBtu
D64: Wood | E64: Wood | F64: $/Cord | G64: 0.045 | H64: $/MMBtu
B73: =Instructions!$B$79 -> MO 780-3070 (12-24)

Sheet Fuel Use Summary (7) (hidden)
F1: Applicant Organization Name
F2: =IF('Application Authorization Form'!B7=0,"",'Application Authorization Form'!B7) -> 
F3: Specific Building or System Name
N4: Fuel Units | O4: MMBTU conversion Factor
F5: Total Area Cooled in Square Feet | I5: Total Area Heated in Square Feet | N5: CCF | O5: 10 | P5: MMBtu
N6: Therm | O6: 10 | P6: MMBtu
B7: SERVICE DATES | E7: Utility providing Fuel | H7: SERVICE DATES | J7: Utility providing Fuel | N7: MMBtu | O7: 1 | P7: MMBtu
N8: Gallon Propane | O8: 10.9 | P8: MMBtu
B9: FROM | D9: TO | E9: ELECTRICITY | H9: FROM | I9: TO | J9: FUEL Natural Gas/ Fuel Oil / LPG / Other | N9: Gallon Oil | O9: 7.2 | P9: MMBtu
B10: MM/DD/YYYY | D10: MM/DD/YYYY | E10: USAGE | F10: DEMAND | G10: COST | H10: MM/DD/YYYY | I10: MM/DD/YYYY | J10: USAGE | K10: COST | N10: Ton Coal | O10: 0.045 | P10: MMBtu
E11: (kWh) | F11: (kW) | G11: ($) | J11: CCF | K11: ($) | N11: Cord Wood | O11: 0.045 | P11: MMBtu
B24: ANNUAL TOTAL | E24: =SUM(E12:E23) -> 0 | G24: =SUM(G12:G23) -> 0 | J24: =SUM(J12:J23) -> 0 | K24: =SUM(K12:K23) -> 0
B25: AVERAGE UNIT COST | E25: =IFERROR(G24/E24,"") ->  | G25: $/kWh | J25: =IFERROR(K24/J24,"") ->  | K25: ="$ per "&J11 -> $ per CCF
E26: =IFERROR(E25*1000000/3412,"") ->  | G26: $/MMBtu | J26: =IFERROR(J25*VLOOKUP(J11,N5:O9,2,FALSE),"") ->  | K26: $/MMBtu
B27: ACCOUNT NUMBER
B29: METER NUMBER
B32: FUEL USE SUMMARY - INSTRUCTION
C34: Please complete an individual Fuel Use Summary for each meter with proposed energy conservation measures.
C35: Please complete the Fuel Use Summary using data from the most recent 12 months of energy bills. Copies of those energy bills must be submitted with the application.
B37: FUEL USE SUMMARY FOR MULTIPLE METERS
C39: If the project involves more than one meter, please fill out a fuel use summary for each meter by clicking a button below.
B46: CONVERSION TABLE
C48: The table below contains information for the various fuels necessary to compute the cost of a million Btu (MMBtu) for each fuel. To use the table, find the relevant fuel type, determine the cost per unit of that fuel and multiply by the appropriate conversion number to obtain the cost per MMBtu.
D50: Fuel Type | E50: Abbreviation | F50: Multiply | G50: By | H50: To Obtain
D52: Electricity | E52: E | F52: $/Kwh | G52: 293 | H52: $/MMBtu
D54: Natural Gas | E54: NG | F54: $/Therm | G54: 10 | H54: $/MMBtu
D56: Natural Gas | E56: NG | F56: $/CCF | G56: 10 | H56: $/MMBtu
D58: Propane | E58: LPG | F58: $/Gallon | G58: 10.9 | H58: $/MMBtu
D60: Oil | E60: Oil | F60: $/Gallon | G60: 7.2 | H60: $/MMBtu
D62: Coal | E62: Coal | F62: $/Ton | G62: 0.045 | H62: $/MMBtu
D64: Wood | E64: Wood | F64: $/Cord | G64: 0.045 | H64: $/MMBtu
B73: =Instructions!$B$79 -> MO 780-3070 (12-24)

Sheet Fuel Use Summary (8) (hidden)
F1: Applicant Organization Name
F2: =IF('Application Authorization Form'!B7=0,"",'Application Authorization Form'!B7) -> 
F3: Specific Building or System Name
N4: Fuel Units | O4: MMBTU conversion Factor
F5: Total Area Cooled in Square Feet | I5: Total Area Heated in Square Feet | N5: CCF | O5: 10 | P5: MMBtu
N6: Therm | O6: 10 | P6: MMBtu
B7: SERVICE DATES | E7: Utility providing Fuel | H7: SERVICE DATES | J7: Utility providing Fuel | N7: MMBtu | O7: 1 | P7: MMBtu
N8: Gallon Propane | O8: 10.9 | P8: MMBtu
B9: FROM | D9: TO | E9: ELECTRICITY | H9: FROM | I9: TO | J9: FUEL Natural Gas/ Fuel Oil / LPG / Other | N9: Gallon Oil | O9: 7.2 | P9: MMBtu
B10: MM/DD/YYYY | D10: MM/DD/YYYY | E10: USAGE | F10: DEMAND | G10: COST | H10: MM/DD/YYYY | I10: MM/DD/YYYY | J10: USAGE | K10: COST | N10: Ton Coal | O10: 0.045 | P10: MMBtu
E11: (kWh) | F11: (kW) | G11: ($) | J11: CCF | K11: ($) | N11: Cord Wood | O11: 0.045 | P11: MMBtu
B24: ANNUAL TOTAL | E24: =SUM(E12:E23) -> 0 | G24: =SUM(G12:G23) -> 0 | J24: =SUM(J12:J23) -> 0 | K24: =SUM(K12:K23) -> 0
B25: AVERAGE UNIT COST | E25: =IFERROR(G24/E24,"") ->  | G25: $/kWh | J25: =IFERROR(K24/J24,"") ->  | K25: ="$ per "&J11 -> $ per CCF
E26: =IFERROR(E25*1000000/3412,"") ->  | G26: $/MMBtu | J26: =IFERROR(J25*VLOOKUP(J11,N5:O9,2,FALSE),"") ->  | K26: $/MMBtu
B27: ACCOUNT NUMBER
B29: METER NUMBER
B32: FUEL USE SUMMARY - INSTRUCTION
C34: Please complete an individual Fuel Use Summary for each meter with proposed energy conservation measures.
C35: Please complete the Fuel Use Summary using data from the most recent 12 months of energy bills. Copies of those energy bills must be submitted with the application.
B37: FUEL USE SUMMARY FOR MULTIPLE METERS
C39: If the project involves more than one meter, please fill out a fuel use summary for each meter by clicking a button below.
B46: CONVERSION TABLE
C48: The table below contains information for the various fuels necessary to compute the cost of a million Btu (MMBtu) for each fuel. To use the table, find the relevant fuel type, determine the cost per unit of that fuel and multiply by the appropriate conversion number to obtain the cost per MMBtu.
D50: Fuel Type | E50: Abbreviation | F50: Multiply | G50: By | H50: To Obtain
D52: Electricity | E52: E | F52: $/Kwh | G52: 293 | H52: $/MMBtu
D54: Natural Gas | E54: NG | F54: $/Therm | G54: 10 | H54: $/MMBtu
D56: Natural Gas | E56: NG | F56: $/CCF | G56: 10 | H56: $/MMBtu
D58: Propane | E58: LPG | F58: $/Gallon | G58: 10.9 | H58: $/MMBtu
D60: Oil | E60: Oil | F60: $/Gallon | G60: 7.2 | H60: $/MMBtu
D62: Coal | E62: Coal | F62: $/Ton | G62: 0.045 | H62: $/MMBtu
D64: Wood | E64: Wood | F64: $/Cord | G64: 0.045 | H64: $/MMBtu
B73: =Instructions!$B$79 -> MO 780-3070 (12-24)

Sheet Fuel Use Summary (9) (hidden)
F1: Applicant Organization Name
F2: =IF('Application Authorization Form'!B7=0,"",'Application Authorization Form'!B7) -> 
F3: Specific Building or System Name
N4: Fuel Units | O4: MMBTU conversion Factor
F5: Total Area Cooled in Square Feet | I5: Total Area Heated in Square Feet | N5: CCF | O5: 10 | P5: MMBtu
N6: Therm | O6: 10 | P6: MMBtu
B7: SERVICE DATES | E7: Utility providing Fuel | H7: SERVICE DATES | J7: Utility providing Fuel | N7: MMBtu | O7: 1 | P7: MMBtu
N8: Gallon Propane | O8: 10.9 | P8: MMBtu
B9: FROM | D9: TO | E9: ELECTRICITY | H9: FROM | I9: TO | J9: FUEL Natural Gas/ Fuel Oil / LPG / Other | N9: Gallon Oil | O9: 7.2 | P9: MMBtu
B10: MM/DD/YYYY | D10: MM/DD/YYYY | E10: USAGE | F10: DEMAND | G10: COST | H10: MM/DD/YYYY | I10: MM/DD/YYYY | J10: USAGE | K10: COST | N10: Ton Coal | O10: 0.045 | P10: MMBtu
E11: (kWh) | F11: (kW) | G11: ($) | J11: CCF | K11: ($) | N11: Cord Wood | O11: 0.045 | P11: MMBtu
B24: ANNUAL TOTAL | E24: =SUM(E12:E23) -> 0 | G24: =SUM(G12:G23) -> 0 | J24: =SUM(J12:J23) -> 0 | K24: =SUM(K12:K23) -> 0
B25: AVERAGE UNIT COST | E25: =IFERROR(G24/E24,"") ->  | G25: $/kWh | J25: =IFERROR(K24/J24,"") ->  | K25: ="$ per "&J11 -> $ per CCF
E26: =IFERROR(E25*1000000/3412,"") ->  | G26: $/MMBtu | J26: =IFERROR(J25*VLOOKUP(J11,N5:O9,2,FALSE),"") ->  | K26: $/MMBtu
B27: ACCOUNT NUMBER
B29: METER NUMBER
B32: FUEL USE SUMMARY - INSTRUCTION
C34: Please complete an individual Fuel Use Summary for each meter with proposed energy conservation measures.
C35: Please complete the Fuel Use Summary using data from the most recent 12 months of energy bills. Copies of those energy bills must be submitted with the application.
B37: FUEL USE SUMMARY FOR MULTIPLE METERS
C39: If the project involves more than one meter, please fill out a fuel use summary for each meter by clicking a button below.
B46: CONVERSION TABLE
C48: The table below contains information for the various fuels necessary to compute the cost of a million Btu (MMBtu) for each fuel. To use the table, find the relevant fuel type, determine the cost per unit of that fuel and multiply by the appropriate conversion number to obtain the cost per MMBtu.
D50: Fuel Type | E50: Abbreviation | F50: Multiply | G50: By | H50: To Obtain
D52: Electricity | E52: E | F52: $/Kwh | G52: 293 | H52: $/MMBtu
D54: Natural Gas | E54: NG | F54: $/Therm | G54: 10 | H54: $/MMBtu
D56: Natural Gas | E56: NG | F56: $/CCF | G56: 10 | H56: $/MMBtu
D58: Propane | E58: LPG | F58: $/Gallon | G58: 10.9 | H58: $/MMBtu
D60: Oil | E60: Oil | F60: $/Gallon | G60: 7.2 | H60: $/MMBtu
D62: Coal | E62: Coal | F62: $/Ton | G62: 0.045 | H62: $/MMBtu
D64: Wood | E64: Wood | F64: $/Cord | G64: 0.045 | H64: $/MMBtu
B73: =Instructions!$B$79 -> MO 780-3070 (12-24)

Sheet Fuel Use Summary (10) (hidden)
F1: Applicant Organization Name
F2: =IF('Application Authorization Form'!B7=0,"",'Application Authorization Form'!B7) -> 
F3: Specific Building or System Name
N4: Fuel Units | O4: MMBTU conversion Factor
F5: Total Area Cooled in Square Feet | I5: Total Area Heated in Square Feet | N5: CCF | O5: 10 | P5: MMBtu
N6: Therm | O6: 10 | P6: MMBtu
B7: SERVICE DATES | E7: Utility providing Fuel | H7: SERVICE DATES | J7: Utility providing Fuel | N7: MMBtu | O7: 1 | P7: MMBtu
N8: Gallon Propane | O8: 10.9 | P8: MMBtu
B9: FROM | D9: TO | E9: ELECTRICITY | H9: FROM | I9: TO | J9: FUEL Natural Gas/ Fuel Oil / LPG / Other | N9: Gallon Oil | O9: 7.2 | P9: MMBtu
B10: MM/DD/YYYY | D10: MM/DD/YYYY | E10: USAGE | F10: DEMAND | G10: COST | H10: MM/DD/YYYY | I10: MM/DD/YYYY | J10: USAGE | K10: COST | N10: Ton Coal | O10: 0.045 | P10: MMBtu
E11: (kWh) | F11: (kW) | G11: ($) | J11: CCF | K11: ($) | N11: Cord Wood | O11: 0.045 | P11: MMBtu
B24: ANNUAL TOTAL | E24: =SUM(E12:E23) -> 0 | G24: =SUM(G12:G23) -> 0 | J24: =SUM(J12:J23) -> 0 | K24: =SUM(K12:K23) -> 0
B25: AVERAGE UNIT COST | E25: =IFERROR(G24/E24,"") ->  | G25: $/kWh | J25: =IFERROR(K24/J24,"") ->  | K25: ="$ per "&J11 -> $ per CCF
E26: =IFERROR(E25*1000000/3412,"") ->  | G26: $/MMBtu | J26: =IFERROR(J25*VLOOKUP(J11,N5:O9,2,FALSE),"") ->  | K26: $/MMBtu
B27: ACCOUNT NUMBER
B29: METER NUMBER
B32: FUEL USE SUMMARY - INSTRUCTION
C34: Please complete an individual Fuel Use Summary for each meter with proposed energy conservation measures.
C35: Please complete the Fuel Use Summary using data from the most recent 12 months of energy bills. Copies of those energy bills must be submitted with the application.
B37: FUEL USE SUMMARY FOR MULTIPLE METERS
C39: If the project involves more than one meter, please fill out a fuel use summary for each meter by clicking a button below.
B46: CONVERSION TABLE
C48: The table below contains information for the various fuels necessary to compute the cost of a million Btu (MMBtu) for each fuel. To use the table, find the relevant fuel type, determine the cost per unit of that fuel and multiply by the appropriate conversion number to obtain the cost per MMBtu.
D50: Fuel Type | E50: Abbreviation | F50: Multiply | G50: By | H50: To Obtain
D52: Electricity | E52: E | F52: $/Kwh | G52: 293 | H52: $/MMBtu
D54: Natural Gas | E54: NG | F54: $/Therm | G54: 10 | H54: $/MMBtu
D56: Natural Gas | E56: NG | F56: $/CCF | G56: 10 | H56: $/MMBtu
D58: Propane | E58: LPG | F58: $/Gallon | G58: 10.9 | H58: $/MMBtu
D60: Oil | E60: Oil | F60: $/Gallon | G60: 7.2 | H60: $/MMBtu
D62: Coal | E62: Coal | F62: $/Ton | G62: 0.045 | H62: $/MMBtu
D64: Wood | E64: Wood | F64: $/Cord | G64: 0.045 | H64: $/MMBtu
B73: =Instructions!$B$79 -> MO 780-3070 (12-24)

Sheet Sheet1 (hidden)

Sheet Fuel Use Summary
F1: Applicant Organization Name
F2: =IF('Application Authorization Form'!B7=0,"",'Application Authorization Form'!B7) -> 
F3: Specific Building or System Name
N4: Fuel Units | O4: MMBTU conversion Factor
F5: Total Area Cooled in Square Feet | I5: Total Area Heated in Square Feet | N5: CCF | O5: 10 | P5: MMBtu
N6: Therm | O6: 10 | P6: MMBtu
B7: SERVICE DATES | E7: Utility Provider | H7: SERVICE DATES | J7: Utility Provider | N7: MMBtu | O7: 1 | P7: MMBtu
N8: Gallon Propane | O8: 10.9 | P8: MMBtu
B9: FROM | D9: TO | E9: ELECTRICITY | H9: FROM | I9: TO | J9: FUEL Natural Gas/ Fuel Oil / LPG / Other | N9: Gallon Oil | O9: 7.2 | P9: MMBtu
B10: MM/DD/YYYY | D10: MM/DD/YYYY | E10: USAGE | F10: DEMAND | G10: COST | H10: MM/DD/YYYY | I10: MM/DD/YYYY | J10: USAGE | K10: COST | N10: Ton Coal | O10: 0.045 | P10: MMBtu
E11: (kWh) | F11: (kW) | G11: ($) | J11: CCF | K11: ($) | N11: Cord Wood | O11: 0.045 | P11: MMBtu
B24: ANNUAL TOTAL | E24: =SUM(E12:E23) -> 0 | G24: =SUM(G12:G23) -> 0 | J24: =SUM(J12:J23) -> 0 | K24: =SUM(K12:K23) -> 0
B25: AVERAGE UNIT COST | E25: =IFERROR(G24/E24,"") ->  | G25: $/kWh | J25: =IFERROR(K24/J24,"") ->  | K25: ="$ per "&J11 -> $ per CCF
E26: =IFERROR(E25*1000000/3412,"") ->  | G26: $/MMBtu | J26: =IFERROR(J25*VLOOKUP(J11,N5:O9,2,FALSE),"") ->  | K26: $/MMBtu
B27: ACCOUNT NUMBER
B29: METER NUMBER
B32: FUEL USE SUMMARY - INSTRUCTION
C34: Please complete an individual Fuel Use Summary for each meter with proposed energy conservation measures.
C35: Please complete the Fuel Use Summary using data from the most recent 12 months of energy bills. Copies of those energy bills must be submitted with the application.
B37: FUEL USE SUMMARY FOR MULTIPLE METERS
C39: If the project involves more than one meter, please fill out a Fuel Use Summary for each meter by clicking the button below.
B46: CONVERSION TABLE
C48: The table below contains conversion information necessary to compute the cost of a million Btu (MMBtu) for each fuel. To use the table, find the relevant fuel type, determine the cost per unit of that fuel and multiply by the appropriate conversion number to obtain the cost per MMBtu.
D50: Fuel Type | E50: Abbreviation | F50: Multiply | G50: By | H50: To Obtain
D52: Electricity | E52: E | F52: $/kWh | G52: 293 | H52: $/MMBtu
D54: Natural Gas | E54: NG | F54: $/Therm | G54: 10 | H54: $/MMBtu
D56: Natural Gas | E56: NG | F56: $/CCF | G56: 10 | H56: $/MMBtu
D58: Propane | E58: LPG | F58: $/Gallon | G58: 10.9 | H58: $/MMBtu
D60: Oil | E60: Oil | F60: $/Gallon | G60: 7.2 | H60: $/MMBtu
D62: Coal | E62: Coal | F62: $/Ton | G62: 0.045 | H62: $/MMBtu
D64: Wood | E64: Wood | F64: $/Cord | G64: 0.045 | H64: $/MMBtu
B73: =Instructions!$B$79 -> MO 780-3070 (12-24)

Sheet ECM Summary
B2: Enter the list of proposed energy conservation measures on this sheet.
B3: APPLICANT ORGANIZATION NAME | P3: MMBtu
B4: =IF('Application Authorization Form'!B7=0,"",'Application Authorization Form'!B7) ->  | P4: CCF
B5: # | C5: ECM Description | F5: Project Cost (a) | G5: Annual Fuel Savings (b) | H5: Fuel Type | I5: Annual Cost Savings (c) | J5: Simple Payback (a) ÷ (c)
B6: 1 | H6: kWh | J6: =IFERROR(F6/I6,"") -> 
H7: MMBtu
B8: 2 | F8: 0 | H8: kWh | I8: 0 | J8: =IFERROR(F8/I8,"") -> 
H9: MMBtu
B10: 3 | F10: 0 | H10: kWh | I10: 0 | J10: =IFERROR(F10/I10,"") -> 
H11: MMBtu
B12: 4 | F12: 0 | H12: kWh | I12: 0 | J12: =IFERROR(F12/I12,"") -> 
H13: MMBtu
B14: 5 | F14: 0 | H14: kWh | I14: 0 | J14: =IFERROR(F14/I14,"") -> 
H15: MMBtu
B16: 6 | F16: 0 | H16: kWh | I16: 0 | J16: =IFERROR(F16/I16,"") -> 
H17: MMBtu
B18: 7 | F18: 0 | H18: kWh | I18: 0 | J18: =IFERROR(F18/I18,"") -> 
H19: MMBtu
B20: 8 | F20: 0 | H20: kWh | I20: 0 | J20: =IFERROR(F20/I20,"") -> 
H21: MMBtu
B22: 9 | F22: 0 | H22: kWh | I22: 0 | J22: =IFERROR(F22/I22,"") -> 
H23: MMBtu
B24: 10 | F24: 0 | H24: kWh | I24: 0 | J24: =IFERROR(F24/I24,"") -> 
H25: MMBtu
B26: Summary | F26: =SUM(F6:F25) -> 0 | G26: =IF(G6>0,(G6+G8+G10+G12+G14+G16+G18+G20+G22+G24),"") ->  | H26: kWh | I26: =SUM(I6:I25) -> 0 | J26: =IFERROR(F26/I26,"") -> 
G27: =IF(G7>0,G7+G9+G11+G13+G15+G17+G19+G21+G23+G25,"") ->  | H27: MMBtu
B28: =Instructions!$B$79 -> MO 780-3070 (12-24)

Sheet DNR-DE STAFF ONLY (hidden)
B3: USER UI | J3: DNR-DE VIEW ONLY
D41: This page is for DNR-DE Internal use only.
